Workbook

Sheet Instruktioner
A1: INSTRUKTIONER
A3: Grunduppgifter
B20: Fyll i de gula fälten. Din ekonom vet aktuella procentsatser för lkp, löneuppräkning och högskolans påslag.
B21: Finansiärens villkor framgår av utlysningen.
A23: Sammanställning | B23: Visar projektets kostnad utifrån HBs verkliga kostnader samt enligt finansiärens villkor.
B24: Alla siffror hämtas från andra källor i kalkylen, här fylls inget i.
A26: Lönekostnad FINANSIÄR
B30: Fyll i de gula fälten. Lönekostnad beräknas enligt finansiärens villkor enligt det som angivits i fliken Grunduppgifter.
B31: Lönekostnaden visas för grundlön, LKP och totalt per år och totalt samt per individ och alla.
B32: Observera att omfattningen måste anges i procent (%).
A34: Lönekostnad HB
B38: I denna flika hämtas personer, lön och omfattning från fliken Lönekostnad FINANSIÄR. Lönekostnad beräknas enligt HBs villkor enligt det som angivits i fliken Grunduppgifter.
B39: Lönekostnaden visas för grundlön, LKP och totalt per år och totalt samt per individ och alla.
B40: Om personens insats är IN KIND av något slag och inte ska beräknas som en kostnad i projektet för HB så kan månadslönen sättas till 0.
A42: Resekostnader
B45: Fyll i de gula fälten med projektets resekostnader.
A47: Externa tjänster
B52: Fyll i de gula fälten med projektets externa tjänster och konsulter.
A54: Övriga kostnader
B61: Fyll i de gula fälten med projektets driftskostnader.
A63: Lokalkostnader
B94: Fyll i de gula fälten med omfattning i procent respektive antal timmar för den typ av lokal som behövs för projektet.
B95: Tjänsterum bör alltid budgeteras för den tid som en person är tänkt att vara med i projektet.
B96: För externa lokaler behöver även beskrivning av lokal och kostnas/timme anges.
A98: Utrustning och avskrivningar
B115: Fyll i anskaffningsvärdet samt antalet månader som ska avskrivningarna ska bekostas av projektet respektive år i de gula fälten.
B116: Observera att utrustning med anskaffningsvärde under 20 tkr inte avskrivs utan utgör en övrig kostnad.
A118: Påslag
B128: I denna flik beräknas påslagen enligt finansiärens villkor och högskolans villkor enligt vad som angivits i fliken Grunduppgifter. Observera att det är viktigt att det är korrekt valt vilka kostnaddslag som
B129: finansiärens villkor beräknas på i fliken Grunduppgifter för att påslaget ska beräknas korrekt.
B130: Om finansiären medger ett fast belopp anges procentsats 0% i fliken grunduppgifter och beloppet anges i de gula fälten i denna flik.
A132: IN KIND | B132: I denna flik kan eventuell IN KIND anges och beräknas.
B133: OBS: det som fylls i som IN KIND i denna flik påverkar inte vad som angivits i de andra flikarna.

Sheet Beräkning snittlön
A1: Antagande för beräkning: | B1: Med heltidsstudier är en doktorandutbildning 4 år.
B2: Lönen under doktorandutbildningen ligger mellan 26500-30600 kr/mån.
B3: Doktoranden antas ligga i de olika lönenivåerna lika länge, dvs ett år/steg.
B5: År | C5: Lön | D5: Mån | E5: Årslön | F5: Bruttolön | G5: Snitt/mån | H5: LKP | I5: Lönerev | J5: Kostn/år | K5: Kostnad 4 år
A6: Ingångslön | B6: 1 | C6: 29500 | D6: 12 | E6: =C6*D6 -> 354000 | F6: =SUM(E6:E9) -> 1512000 | G6: =F6/48 -> 31500 | H6: 1.5364 | I6: 1.025 | J6: =$G$6*12*I6*H6 -> 595278.18 | K6: =SUM(J6:J9) -> 2471901.944
A7: 60 hp | B7: 2 | C7: 30500 | D7: 12 | E7: =C7*D7 -> 366000 | H7: =H6 -> 1.5364 | I7: =I6*1.025 -> 1.050625 | J7: =$G$6*12*I7*H7 -> 610160.1345
A8: 120 hp | B8: 3 | C8: 32500 | D8: 12 | E8: 390000 | H8: =H6 -> 1.5364 | I8: =I7*1.025 -> 1.076890625 | J8: 625414.1379
A9: 180 hp | B9: 4 | C9: 33500 | D9: 12 | E9: 402000 | H9: =H6 -> 1.5364 | I9: 1.103812891 | J9: 641049.4913
G10: Om denna används blir det löneuppräkning på löneuppräkning enl trappan
A29: https://www.hb.se/globalassets/global/hb---anstalld/styrdokument/lokalt-villkorsavtal-210520.pdf

Sheet Sammanställning
A1: SAMMANSTÄLLNING PROJEKTKALKYL
A2: ="Projekt: "&Grunduppgifter!B5 -> Projekt:
C4: Enl. fin. villkor | D4: Enl. HBs villkor | G4: Enligt finansiärens villkor / år | N4: Enligt högskolans villkor / år
C5: Totalt | D5: Totalt | G5: År 1 | H5: År 2 | I5: År 3 | J5: År 4 | K5: År 5 | L5: Summa | N5: År 1 | O5: År 2 | P5: År 3 | Q5: År 4 | R5: År 5 | S5: Summa
A6: Direkta kostnader
B7: Personal | C7: ='Lönekostnad FINANSIÄR'!$Z$41 -> 2886425.575 | D7: ='Lönekostnad HB'!$Y$41 -> 2886425.575 | G7: ='Lönekostnad FINANSIÄR'!$K$41 -> 692045.3751 | H7: ='Lönekostnad FINANSIÄR'!$N$41 -> 709346.5095 | I7: ='Lönekostnad FINANSIÄR'!$Q$41 -> 727080.1723 | J7: ='Lönekostnad FINANSIÄR'!$T$41 -> 757953.518 | K7: ='Lönekostnad FINANSIÄR'!$W$41 -> 0 | L7: =SUM(G7:K7) -> 2886425.575 | N7: ='Lönekostnad HB'!J41 -> 692045.3751 | O7: ='Lönekostnad HB'!M41 -> 709346.5095 | P7: ='Lönekostnad HB'!P41 -> 727080.1723 | Q7: ='Lönekostnad HB'!S41 -> 757953.518 | R7: ='Lönekostnad HB'!V41 -> 0 | S7: =SUM(N7:R7) -> 2886425.575
B8: Resor | C8: =Resekostnader!$G$40 -> 70000 | D8: =Resekostnader!$G$40 -> 70000 | G8: =Resekostnader!$B$40 -> 15000 | H8: =Resekostnader!$C$40 -> 15000 | I8: =Resekostnader!$D$40 -> 15000 | J8: =Resekostnader!$E$40 -> 25000 | K8: =Resekostnader!$F$40 -> 0 | L8: =SUM(G8:K8) -> 70000 | N8: =G8 -> 15000 | O8: =H8 -> 15000 | P8: =I8 -> 15000 | Q8: 25000 | R8: 0 | S8: =SUM(N8:R8) -> 70000
B9: Externa tjänster | C9: ='Externa tjänster'!$G$40 -> 14200 | D9: ='Externa tjänster'!$G$40 -> 14200 | G9: ='Externa tjänster'!$B$40 -> 800 | H9: ='Externa tjänster'!$C$40 -> 800 | I9: ='Externa tjänster'!$D$40 -> 800 | J9: ='Externa tjänster'!$E$40 -> 11800 | K9: ='Externa tjänster'!$F$40 -> 0 | L9: 14200 | N9: =G9 -> 800 | O9: =H9 -> 800 | P9: =I9 -> 800 | Q9: =J9 -> 11800 | R9: =K9 -> 0 | S9: 14200
B10: Övriga driftskostnader | C10: ='Övriga kostnader'!$G$40 -> 135000 | D10: ='Övriga kostnader'!$G$40 -> 135000 | G10: ='Övriga kostnader'!$B$40 -> 45000 | H10: ='Övriga kostnader'!$C$40 -> 25000 | I10: ='Övriga kostnader'!$D$40 -> 25000 | J10: ='Övriga kostnader'!$E$40 -> 40000 | K10: ='Övriga kostnader'!$F$40 -> 0 | L10: 135000 | N10: 45000 | O10: 25000 | P10: 25000 | Q10: 40000 | R10: 0 | S10: 135000
B11: Lokaler | C11: =Lokalkostnader!$O$41 -> 97629.76 | D11: =Lokalkostnader!$O$41 -> 97629.76 | G11: =Lokalkostnader!$J$41 -> 23157.44 | H11: =Lokalkostnader!$K$41 -> 23157.44 | I11: =Lokalkostnader!$L$41 -> 23157.44 | J11: =Lokalkostnader!$M$41 -> 28157.44 | K11: =Lokalkostnader!$N$41 -> 0 | L11: 97629.76 | N11: 23157.44 | O11: 23157.44 | P11: 23157.44 | Q11: 28157.44 | R11: 0 | S11: 97629.76
B12: Utrustning och avskrivningar | C12: ='Utrustning och avskrivningar'!$O$46 -> 0 | D12: ='Utrustning och avskrivningar'!$O$46 -> 0 | G12: ='Utrustning och avskrivningar'!$J$46 -> 0 | H12: ='Utrustning och avskrivningar'!$K$46 -> 0 | I12: ='Utrustning och avskrivningar'!$L$46 -> 0 | J12: ='Utrustning och avskrivningar'!$M$46 -> 0 | K12: ='Utrustning och avskrivningar'!$N$46 -> 0 | L12: 0 | N12: 0 | O12: 0 | P12: 0 | Q12: 0 | R12: 0 | S12: 0
A13: Summa direkta kostnader | C13: =SUM(C7:C12) -> 3203255.335 | D13: =SUM(D7:D12) -> 3203255.335 | G13: =SUM(G7:G12) -> 776002.8151 | H13: =SUM(H7:H12) -> 773303.9495 | I13: 791037.6123 | J13: 862910.958 | K13: 0 | L13: 3203255.335 | N13: =SUM(N7:N12) -> 776002.8151 | O13: 773303.9495 | P13: 791037.6123 | Q13: 862910.958 | R13: 0 | S13: 3203255.335
A15: Indirekta kostnader
B16: Påslag/Overhead | C16: =Påslag!$G$15 -> 1464860.979 | D16: =Påslag!$M$15 -> 1464860.979 | G16: =Påslag!$B$15 -> 351213.0279 | H16: =Påslag!$C$15 -> 359993.3536 | I16: =Påslag!$D$15 -> 368993.1874 | J16: =Påslag!$E$15 -> 384661.4104 | K16: =Påslag!$F$15 -> 0 | L16: =SUM(G16:K16) -> 1464860.979 | N16: =Påslag!H15 -> 351213.0279 | O16: =Påslag!I15 -> 359993.3536 | P16: =Påslag!J15 -> 368993.1874 | Q16: =Påslag!K15 -> 384661.4104 | R16: =Påslag!L15 -> 0 | S16: =SUM(N16:R16) -> 1464860.979
A17: Summa indirekta kostnader | C17: =SUM(C16) -> 1464860.979 | D17: =SUM(D16) -> 1464860.979 | G17: =SUM(G16) -> 351213.0279 | H17: =SUM(H16) -> 359993.3536 | I17: 368993.1874 | J17: 384661.4104 | K17: 0 | L17: 1464860.979 | N17: =SUM(N16) -> 351213.0279 | O17: =SUM(O16) -> 359993.3536 | P17: =SUM(P16) -> 368993.1874 | Q17: =SUM(Q16) -> 384661.4104 | R17: =SUM(R16) -> 0 | S17: 1464860.979
A19: Summa kostnader för projektet | C19: =C13+C17 -> 4668116.314 | D19: =D13+D17 -> 4668116.314 | G19: =G13+G17 -> 1127215.843 | H19: =H13+H17 -> 1133297.303 | I19: 1160030.8 | J19: 1247572.368 | K19: 0 | L19: =SUM(G19:K19) -> 4668116.314 | N19: =N13+N17 -> 1127215.843 | O19: =O13+O17 -> 1133297.303 | P19: 1160030.8 | Q19: 1247572.368 | R19: 0 | S19: =SUM(N19:R19) -> 4668116.314
A21: Belopp som söks från finansiär | C21: =C19*Grunduppgifter!$D$39 -> 4668116.314 | D21: =C21 -> 4668116.314 | G21: =G19*Grunduppgifter!$D$39 -> 1127215.843 | H21: =H19*Grunduppgifter!$D$39 -> 1133297.303 | I21: =I19*Grunduppgifter!$D$39 -> 1160030.8 | J21: =J19*Grunduppgifter!$D$39 -> 1247572.368 | K21: =K19*Grunduppgifter!$D$39 -> 0 | L21: =SUM(G21:K21) -> 4668116.314 | N21: =N19*Grunduppgifter!$D$39 -> 1127215.843 | O21: =O19*Grunduppgifter!$D$39 -> 1133297.303 | P21: =P19*Grunduppgifter!$D$39 -> 1160030.8 | Q21: =Q19*Grunduppgifter!$D$39 -> 1247572.368 | R21: =R19*Grunduppgifter!$D$39 -> 0 | S21: =SUM(N21:R21) -> 4668116.314
A23: Samfinansiering för projektet
B24: Enligt utlysningens villkor | C24: =(1-Grunduppgifter!$D$39)*Sammanställning!$C$19 -> 0 | D24: =(1-Grunduppgifter!$D$39)*Sammanställning!$C$19 -> 0 | G24: =(1-Grunduppgifter!$D$39)*Sammanställning!$G$19 -> 0 | H24: =(1-Grunduppgifter!$D$39)*Sammanställning!$H$19 -> 0 | I24: =(1-Grunduppgifter!$D$39)*Sammanställning!$I$19 -> 0 | J24: =(1-Grunduppgifter!$D$39)*Sammanställning!$J$19 -> 0 | K24: =(1-Grunduppgifter!$D$39)*Sammanställning!$K$19 -> 0 | L24: =SUM(G24:K24) -> 0 | N24: =(1-Grunduppgifter!$D$39)*Sammanställning!$G$19 -> 0 | O24: =(1-Grunduppgifter!$D$39)*Sammanställning!$H$19 -> 0 | P24: =(1-Grunduppgifter!$D$39)*Sammanställning!$I$19 -> 0 | Q24: =(1-Grunduppgifter!$D$39)*Sammanställning!$J$19 -> 0 | R24: =(1-Grunduppgifter!$D$39)*Sammanställning!$K$19 -> 0 | S24: =SUM(N24:R24) -> 0
B25: För ej full kostnadstäckning Påslag | D25: =(D16-C16) -> 0 | N25: =(N16-G16) -> 0 | O25: =(O16-H16) -> 0 | P25: 0 | Q25: 0 | R25: =(R16-K16) -> 0 | S25: 0
B26: För ej full kostnadstäckning lön och LKP | D26: =('Lönekostnad HB'!X41-'Lönekostnad FINANSIÄR'!Y41)+('Lönekostnad HB'!W41-'Lönekostnad FINANSIÄR'!X41) -> 0 | N26: =('Lönekostnad HB'!H41-'Lönekostnad FINANSIÄR'!I41)+('Lönekostnad HB'!I41-'Lönekostnad FINANSIÄR'!J41) -> 0 | O26: =('Lönekostnad HB'!K41-'Lönekostnad FINANSIÄR'!L41)+('Lönekostnad HB'!L41-'Lönekostnad FINANSIÄR'!M41) -> 0 | P26: =('Lönekostnad HB'!N41-'Lönekostnad FINANSIÄR'!O41)+('Lönekostnad HB'!O41-'Lönekostnad FINANSIÄR'!P41) -> 0 | Q26: =('Lönekostnad HB'!Q41-'Lönekostnad FINANSIÄR'!R41)+('Lönekostnad HB'!R41-'Lönekostnad FINANSIÄR'!S41) -> 0 | R26: =('Lönekostnad HB'!T41-'Lönekostnad FINANSIÄR'!U41)+('Lönekostnad HB'!U41-'Lönekostnad FINANSIÄR'!V41) -> 0 | S26: 0
A27: Summa samfinansiering | C27: =SUM(C24:C26) -> 0 | D27: =SUM(D24:D26) -> 0 | G27: =SUM(G24:G26) -> 0 | H27: =SUM(H24:H26) -> 0 | I27: 0 | J27: 0 | K27: 0 | L27: =SUM(G27:K27) -> 0 | N27: =SUM(N24:N26) -> 0 | O27: =SUM(O24:O26) -> 0 | P27: =SUM(P24:P26) -> 0 | Q27: =SUM(Q24:Q26) -> 0 | R27: =SUM(R24:R26) -> 0 | S27: 0
A31: Andel extern finansiering från finansiär | C31: =C21/C19 -> 1 | D31: =D21/D19 -> 1
A32: Andel egen finansiering från institution/akademi | C32: =C27/C19 -> 0 | D32: =D27/D19 -> 0
C33: =SUM(C31:C32) -> 1 | D33: =SUM(D31:D32) -> 1

Sheet Grunduppgifter
A1: PROJEKTINFORMATION
A3: Ansökan / Beviljat projekt
A4: Orgenhet och Akt/proj
A5: Projekttitel:
A6: Huvudsökande:
A7: Projektledare:
A8: Institution:
A9: Ekonom på institution:
A10: Projektlängd (månader)
A11: Projektstart
A14: Anteckningar:
A24: FÖRUTSÄTTNINGAR PROJEKTKALKYL
C27: % | D27: faktor
A28: Högskolans lönekostnadspålägg (25-29 år) | C28: 0.5364 | D28: =C28 -> 0.5364
A29: Lönekostnadspålägg som medges av finansiär | C29: 0.5364 | D29: =C29 -> 0.5364
A31: Löneuppräkning | C31: 0.025 | D31: =C31 -> 0.025 | G31: Påslag FO 2023
A32: Löneuppräkning som medges av finansiär | C32: 0.025 | D32: =C32 -> 0.025 | G32: A1 | I32: 0.5153
G33: A2 | I33: 0.5114
A34: Högskolans totala påslag | C34: 0.5075 | D34: =C34 -> 0.5075 | G34: A3 | I34: 0.4957
A35: Påslag som medges av finansiär | C35: 0.5075 | D35: =C35 -> 0.5075 | G35: A4 | I35: 0.5075
G36: Rektor, VS | I36: 0.5075
A37: Ingår lokaler i finansiärens påslag? | C37: Nej | D37: (Välj Ja/Nej) | G37: Genomsnitt HB | I37: 0.5075
A39: Finansiering från extern part (%) | C39: 1 | D39: =C39 -> 1
A40: Samfinansiering från institution eller annan finansiär (%) | C40: =1-C39 -> 0 | D40: =C40 -> 0
A43: Finansiären medger påslag på:
A45: Lönekostnader: | C45: Ja | D45: (Välj Ja/Nej)
A47: Driftkostnader: | C47: Nej | D47: (Välj Ja/Nej)
A49: Utrustning: | C49: Nej | D49: (Välj Ja/Nej)
A51: Lokaler: | C51: Nej | D51: (Välj Ja/Nej)

Sheet Lönekostnad FINANSIÄR
A1: PERSONALKOSTNADER (FINANSIÄRENS VILLKOR)
A2: ="Projekt: "&Grunduppgifter!$B$5 -> Projekt:
I3: Kostnad
A4: Lönekostnader inkl. LKP | C4: Omfattning % | I4: År 1 | L4: År 2 | O4: År 3 | R4: År 4 | U4: År 5 | X4: TOTALT
A5: Person / kompetens / roll | B5: Månadslön | C5: År 1 | D5: År 2 | E5: År 3 | F5: År 4 | G5: År 5 | I5: Lön | J5: LKP | K5: TOT | L5: Lön | M5: LKP | N5: TOT | O5: Lön | P5: LKP | Q5: TOT | R5: Lön | S5: LKP | T5: TOT | U5: Lön | V5: LKP | W5: TOT | X5: Lön | Y5: LKP | Z5: TOT | AA5: Budget | AB5: Diff
A6: Handledning professor | B6: 70000 | C6: 0.0295 | D6: 0.0295 | E6: 0.0295 | F6: 0.0295 | H6: =SUM(C6:G6)*100 -> 11.8 | I6: =$B6*(1+Löneuppräkning)^a*12*C6 -> 25558.24723 | J6: =I6*(LönekostnadspåläggFInansiär) -> 13709.44381 | K6: =I6+J6 -> 39267.69104 | L6: =$B6*(1+Löneuppräkning)^b*12*D6 -> 26197.20341 | M6: =L6*(LönekostnadspåläggFInansiär) -> 14052.17991 | N6: =L6+M6 -> 40249.38331 | O6: =$B6*(1+Löneuppräkning)^c_*12*E6 -> 26852.13349 | P6: =O6*(LönekostnadspåläggFInansiär) -> 14403.4844 | Q6: =O6+P6 -> 41255.6179 | R6: =$B6*(1+Löneuppräkning)^d*12*F6 -> 27523.43683 | S6: =R6*(LönekostnadspåläggFInansiär) -> 14763.57151 | T6: =R6+S6 -> 42287.00834 | U6: =$B6*(1+Löneuppräkning)^e*12*G6 -> 0 | V6: =U6*(LönekostnadspåläggFInansiär) -> 0 | W6: =U6+V6 -> 0 | X6: =I6+L6+O6+R6+U6 -> 106131.021 | Y6: =J6+M6+P6+S6+V6 -> 56928.67964 | Z6: =X6+Y6 -> 163059.7006 | AB6: =Z6-AA6 -> 163059.7006
A7: Handledning lektor | B7: 52000 | C7: 0.0295 | D7: 0.0295 | E7: 0.0295 | F7: 0.0295 | H7: =SUM(C7:G7)*100 -> 11.8 | I7: =$B7*(1+Löneuppräkning)^a*12*C7 -> 18986.12651 | J7: 10184.15826 | K7: =I7+J7 -> 29170.28477 | L7: 19460.77967 | M7: 10438.76222 | N7: =L7+M7 -> 29899.54189 | O7: 19947.29917 | P7: 10699.73127 | Q7: =O7+P7 -> 30647.03044 | R7: 20445.98164 | S7: 10967.22455 | T7: =R7+S7 -> 31413.2062 | U7: 0 | V7: 0 | W7: =U7+V7 -> 0 | X7: =I7+L7+O7+R7+U7 -> 78840.18699 | Y7: =J7+M7+P7+S7+V7 -> 42289.8763 | Z7: =X7+Y7 -> 121130.0633 | AB7: =Z7-AA7 -> 121130.0633
A8: Doktorand (snittlön doktorandtrappa 2022) | B8: 31500 | C8: 1 | D8: 1 | E8: 1 | F8: 1 | H8: 400 | I8: 389871.5678 | J8: 209127.109 | K8: 598998.6768 | L8: 399618.357 | M8: 214355.2867 | N8: 613973.6438 | O8: 409608.816 | P8: 219714.1689 | Q8: 629322.9849 | R8: 419849.0364 | S8: 225207.0231 | T8: 645056.0595 | U8: 0 | V8: 0 | W8: 0 | X8: 1618947.777 | Y8: 868403.5877 | Z8: 2487351.365 | AB8: =Z8-AA8 -> 2487351.365
A9: Opponent | B9: 62000 | C9: 0 | D9: 0 | E9: 0 | F9: 0.01 | H9: 1 | I9: 0 | J9: 0 | K9: 0 | L9: 0 | M9: 0 | N9: 0 | O9: 0 | P9: 0 | Q9: 0 | R9: 8263.695319 | S9: 4432.646169 | T9: 12696.34149 | U9: 0 | V9: 0 | W9: 0 | X9: 8263.695319 | Y9: 4432.646169 | Z9: 12696.34149 | AB9: =Z9-AA9 -> 12696.34149
A10: Doktorandkurser 60 hp, | B10: 55000 | C10: =40/1700 -> 0.02352941176 | D10: =40/1700 -> 0.02352941176 | E10: 0.02352941176 | F10: 0.02352941176 | H10: 9.411764706 | I10: 16017.13257 | J10: 8591.589912 | K10: 24608.72248 | L10: 16417.56089 | M10: 8806.37966 | N10: 25223.94055 | O10: 16827.99991 | P10: 9026.539151 | Q10: 25854.53906 | R10: 17248.69991 | S10: 9252.20263 | T10: 26500.90254 | U10: 0 | V10: 0 | W10: 0 | X10: 66511.39328 | Y10: 35676.71135 | Z10: 102188.1046 | AB10: 102188.1046
A11: (totalt 8 kurser * 7,5 hp 20 timmar/kurs för doktoranden) | H11: 0 | I11: 0 | J11: 0 | K11: 0 | L11: 0 | M11: 0 | N11: 0 | O11: 0 | P11: 0 | Q11: 0 | R11: 0 | S11: 0 | T11: 0 | U11: 0 | V11: 0 | W11: 0 | X11: 0 | Y11: 0 | Z11: 0 | AB11: 0
H12: 0 | I12: 0 | J12: 0 | K12: 0 | L12: 0 | M12: 0 | N12: 0 | O12: 0 | P12: 0 | Q12: 0 | R12: 0 | S12: 0 | T12: 0 | U12: 0 | V12: 0 | W12: 0 | X12: 0 | Y12: 0 | Z12: 0 | AB12: 0
H13: 0 | I13: 0 | J13: 0 | K13: 0 | L13: 0 | M13: 0 | N13: 0 | O13: 0 | P13: 0 | Q13: 0 | R13: 0 | S13: 0 | T13: 0 | U13: 0 | V13: 0 | W13: 0 | X13: 0 | Y13: 0 | Z13: 0 | AB13: 0
H14: 0 | I14: 0 | J14: 0 | K14: 0 | L14: 0 | M14: 0 | N14: 0 | O14: 0 | P14: 0 | Q14: 0 | R14: 0 | S14: 0 | T14: 0 | U14: 0 | V14: 0 | W14: 0 | X14: 0 | Y14: 0 | Z14: 0 | AB14: 0
H15: 0 | I15: 0 | J15: 0 | K15: 0 | L15: 0 | M15: 0 | N15: 0 | O15: 0 | P15: 0 | Q15: 0 | R15: 0 | S15: 0 | T15: 0 | U15: 0 | V15: 0 | W15: 0 | X15: 0 | Y15: 0 | Z15: 0 | AB15: 0
H16: 0 | I16: 0 | J16: 0 | K16: 0 | L16: 0 | M16: 0 | N16: 0 | O16: 0 | P16: 0 | Q16: 0 | R16: 0 | S16: 0 | T16: 0 | U16: 0 | V16: 0 | W16: 0 | X16: 0 | Y16: 0 | Z16: 0 | AB16: 0
H17: 0 | I17: 0 | J17: 0 | K17: 0 | L17: 0 | M17: 0 | N17: 0 | O17: 0 | P17: 0 | Q17: 0 | R17: 0 | S17: 0 | T17: 0 | U17: 0 | V17: 0 | W17: 0 | X17: 0 | Y17: 0 | Z17: 0 | AB17: 0
H18: 0 | I18: 0 | J18: 0 | K18: 0 | L18: 0 | M18: 0 | N18: 0 | O18: 0 | P18: 0 | Q18: 0 | R18: 0 | S18: 0 | T18: 0 | U18: 0 | V18: 0 | W18: 0 | X18: 0 | Y18: 0 | Z18: 0 | AB18: 0
H19: 0 | I19: 0 | J19: 0 | K19: 0 | L19: 0 | M19: 0 | N19: 0 | O19: 0 | P19: 0 | Q19: 0 | R19: 0 | S19: 0 | T19: 0 | U19: 0 | V19: 0 | W19: 0 | X19: 0 | Y19: 0 | Z19: 0 | AB19: 0
H20: 0 | I20: 0 | J20: 0 | K20: 0 | L20: 0 | M20: 0 | N20: 0 | O20: 0 | P20: 0 | Q20: 0 | R20: 0 | S20: 0 | T20: 0 | U20: 0 | V20: 0 | W20: 0 | X20: 0 | Y20: 0 | Z20: 0 | AB20: 0
H21: 0 | I21: 0 | J21: 0 | K21: 0 | L21: 0 | M21: 0 | N21: 0 | O21: 0 | P21: 0 | Q21: 0 | R21: 0 | S21: 0 | T21: 0 | U21: 0 | V21: 0 | W21: 0 | X21: 0 | Y21: 0 | Z21: 0 | AB21: 0
H22: 0 | I22: 0 | J22: 0 | K22: 0 | L22: 0 | M22: 0 | N22: 0 | O22: 0 | P22: 0 | Q22: 0 | R22: 0 | S22: 0 | T22: 0 | U22: 0 | V22: 0 | W22: 0 | X22: 0 | Y22: 0 | Z22: 0 | AB22: 0
H23: 0 | I23: 0 | J23: 0 | K23: 0 | L23: 0 | M23: 0 | N23: 0 | O23: 0 | P23: 0 | Q23: 0 | R23: 0 | S23: 0 | T23: 0 | U23: 0 | V23: 0 | W23: 0 | X23: 0 | Y23: 0 | Z23: 0 | AB23: 0
H24: 0 | I24: 0 | J24: 0 | K24: 0 | L24: 0 | M24: 0 | N24: 0 | O24: 0 | P24: 0 | Q24: 0 | R24: 0 | S24: 0 | T24: 0 | U24: 0 | V24: 0 | W24: 0 | X24: 0 | Y24: 0 | Z24: 0 | AB24: 0
H25: 0 | I25: 0 | J25: 0 | K25: 0 | L25: 0 | M25: 0 | N25: 0 | O25: 0 | P25: 0 | Q25: 0 | R25: 0 | S25: 0 | T25: 0 | U25: 0 | V25: 0 | W25: 0 | X25: 0 | Y25: 0 | Z25: 0 | AB25: 0
H26: 0 | I26: 0 | J26: 0 | K26: 0 | L26: 0 | M26: 0 | N26: 0 | O26: 0 | P26: 0 | Q26: 0 | R26: 0 | S26: 0 | T26: 0 | U26: 0 | V26: 0 | W26: 0 | X26: 0 | Y26: 0 | Z26: 0 | AB26: 0
H27: 0 | I27: 0 | J27: 0 | K27: 0 | L27: 0 | M27: 0 | N27: 0 | O27: 0 | P27: 0 | Q27: 0 | R27: 0 | S27: 0 | T27: 0 | U27: 0 | V27: 0 | W27: 0 | X27: 0 | Y27: 0 | Z27: 0 | AB27: 0
H28: 0 | I28: 0 | J28: 0 | K28: 0 | L28: 0 | M28: 0 | N28: 0 | O28: 0 | P28: 0 | Q28: 0 | R28: 0 | S28: 0 | T28: 0 | U28: 0 | V28: 0 | W28: 0 | X28: 0 | Y28: 0 | Z28: 0 | AB28: 0
H29: 0 | I29: 0 | J29: 0 | K29: 0 | L29: 0 | M29: 0 | N29: 0 | O29: 0 | P29: 0 | Q29: 0 | R29: 0 | S29: 0 | T29: 0 | U29: 0 | V29: 0 | W29: 0 | X29: 0 | Y29: 0 | Z29: 0 | AB29: 0
H30: 0 | I30: 0 | J30: 0 | K30: 0 | L30: 0 | M30: 0 | N30: 0 | O30: 0 | P30: 0 | Q30: 0 | R30: 0 | S30: 0 | T30: 0 | U30: 0 | V30: 0 | W30: 0 | X30: 0 | Y30: 0 | Z30: 0 | AB30: 0
H31: 0 | I31: 0 | J31: 0 | K31: 0 | L31: 0 | M31: 0 | N31: 0 | O31: 0 | P31: 0 | Q31: 0 | R31: 0 | S31: 0 | T31: 0 | U31: 0 | V31: 0 | W31: 0 | X31: 0 | Y31: 0 | Z31: 0 | AB31: 0
H32: 0 | I32: 0 | J32: 0 | K32: 0 | L32: 0 | M32: 0 | N32: 0 | O32: 0 | P32: 0 | Q32: 0 | R32: 0 | S32: 0 | T32: 0 | U32: 0 | V32: 0 | W32: 0 | X32: 0 | Y32: 0 | Z32: 0 | AB32: 0
H33: 0 | I33: 0 | J33: 0 | K33: 0 | L33: 0 | M33: 0 | N33: 0 | O33: 0 | P33: 0 | Q33: 0 | R33: 0 | S33: 0 | T33: 0 | U33: 0 | V33: 0 | W33: 0 | X33: 0 | Y33: 0 | Z33: 0 | AB33: 0
H34: 0 | I34: 0 | J34: 0 | K34: 0 | L34: 0 | M34: 0 | N34: 0 | O34: 0 | P34: 0 | Q34: 0 | R34: 0 | S34: 0 | T34: 0 | U34: 0 | V34: 0 | W34: 0 | X34: 0 | Y34: 0 | Z34: 0 | AB34: 0
H35: 0 | I35: 0 | J35: 0 | K35: 0 | L35: 0 | M35: 0 | N35: 0 | O35: 0 | P35: 0 | Q35: 0 | R35: 0 | S35: 0 | T35: 0 | U35: 0 | V35: 0 | W35: 0 | X35: 0 | Y35: 0 | Z35: 0 | AB35: 0
H36: 0 | I36: 0 | J36: 0 | K36: 0 | L36: 0 | M36: 0 | N36: 0 | O36: 0 | P36: 0 | Q36: 0 | R36: 0 | S36: 0 | T36: 0 | U36: 0 | V36: 0 | W36: 0 | X36: 0 | Y36: 0 | Z36: 0 | AB36: 0
H37: 0 | I37: 0 | J37: 0 | K37: 0 | L37: 0 | M37: 0 | N37: 0 | O37: 0 | P37: 0 | Q37: 0 | R37: 0 | S37: 0 | T37: 0 | U37: 0 | V37: 0 | W37: 0 | X37: 0 | Y37: 0 | Z37: 0 | AB37: 0
H38: 0 | I38: 0 | J38: 0 | K38: 0 | L38: 0 | M38: 0 | N38: 0 | O38: 0 | P38: 0 | Q38: 0 | R38: 0 | S38: 0 | T38: 0 | U38: 0 | V38: 0 | W38: 0 | X38: 0 | Y38: 0 | Z38: 0 | AB38: 0
H39: 0 | I39: 0 | J39: 0 | K39: 0 | L39: 0 | M39: 0 | N39: 0 | O39: 0 | P39: 0 | Q39: 0 | R39: 0 | S39: 0 | T39: 0 | U39: 0 | V39: 0 | W39: 0 | X39: 0 | Y39: 0 | Z39: 0 | AB39: 0
H40: 0 | I40: 0 | J40: 0 | K40: 0 | L40: 0 | M40: 0 | N40: 0 | O40: 0 | P40: 0 | Q40: 0 | R40: 0 | S40: 0 | T40: 0 | U40: 0 | V40: 0 | W40: 0 | X40: =I40+L40+O40+R40+U40 -> 0 | Y40: 0 | Z40: 0 | AB40: 0
A41: Summa lönekostnader | I41: =SUM(I6:I40) -> 450433.0742 | J41: =SUM(J6:J40) -> 241612.301 | K41: =SUM(K6:K40) -> 692045.3751 | L41: =SUM(L6:L40) -> 461693.901 | M41: 247652.6085 | N41: 709346.5095 | O41: 473236.2485 | P41: 253843.9237 | Q41: 727080.1723 | R41: 493330.8501 | S41: 264622.668 | T41: 757953.518 | U41: 0 | V41: 0 | W41: 0 | X41: 1878694.074 | Y41: 1007731.501 | Z41: =SUM(Z6:Z40) -> 2886425.575 | AA41: =SUM(AA6:AA40) -> 0 | AB41: =SUM(AB6:AB40) -> 2886425.575

Sheet Lönekostnad HB
A1: PERSONALKOSTNADER (HB:S VILLKOR) | H1: OBS: ALLT HÄMTAS FRÅN ANDRA FLIKAR
A2: ="Projekt: "&Grunduppgifter!$B$5 -> Projekt:
H3: Kostnad
A4: Lönekostnader inkl. LKP | C4: Omfattning % | H4: År 1 | K4: År 2 | N4: År 3 | Q4: År 4 | T4: År 5 | W4: TOTALT
A5: Person / kompetens / roll | B5: Månadslön | C5: År 1 | D5: År 2 | E5: År 3 | F5: År 4 | G5: År 5 | H5: Lön | I5: LKP | J5: TOT | K5: Lön | L5: LKP | M5: TOT | N5: Lön | O5: LKP | P5: TOT | Q5: Lön | R5: LKP | S5: TOT | T5: Lön | U5: LKP | V5: TOT | W5: Lön | X5: LKP | Y5: TOT | Z5: Budget | AA5: Diff
A6: ='Lönekostnad FINANSIÄR'!A6 -> Handledning professor | B6: ='Lönekostnad FINANSIÄR'!B6 -> 70000 | C6: ='Lönekostnad FINANSIÄR'!C6 -> 0.0295 | D6: ='Lönekostnad FINANSIÄR'!D6 -> 0.0295 | E6: ='Lönekostnad FINANSIÄR'!E6 -> 0.0295 | F6: ='Lönekostnad FINANSIÄR'!F6 -> 0.0295 | G6: ='Lönekostnad FINANSIÄR'!G6 -> 0 | H6: =$B6*(1+LöneuppräkningHB)^a*12*C6 -> 25558.24723 | I6: =H6*(Lönekostnadspålägg) -> 13709.44381 | J6: =H6+I6 -> 39267.69104 | K6: =$B6*(1+LöneuppräkningHB)^b*12*D6 -> 26197.20341 | L6: =K6*(Lönekostnadspålägg) -> 14052.17991 | M6: =K6+L6 -> 40249.38331 | N6: =$B6*(1+LöneuppräkningHB)^c_*12*E6 -> 26852.13349 | O6: =N6*(Lönekostnadspålägg) -> 14403.4844 | P6: =N6+O6 -> 41255.6179 | Q6: =$B6*(1+LöneuppräkningHB)^d*12*F6 -> 27523.43683 | R6: =Q6*(Lönekostnadspålägg) -> 14763.57151 | S6: =Q6+R6 -> 42287.00834 | T6: =$B6*(1+LöneuppräkningHB)^e*12*G6 -> 0 | U6: =T6*(Lönekostnadspålägg) -> 0 | V6: =T6+U6 -> 0 | W6: =H6+K6+N6+Q6+T6 -> 106131.021 | X6: =I6+L6+O6+R6+U6 -> 56928.67964 | Y6: =W6+X6 -> 163059.7006 | AA6: =Y6-Z6 -> 163059.7006
A7: ='Lönekostnad FINANSIÄR'!A7 -> Handledning lektor | B7: ='Lönekostnad FINANSIÄR'!B7 -> 52000 | C7: ='Lönekostnad FINANSIÄR'!C7 -> 0.0295 | D7: ='Lönekostnad FINANSIÄR'!D7 -> 0.0295 | E7: ='Lönekostnad FINANSIÄR'!E7 -> 0.0295 | F7: ='Lönekostnad FINANSIÄR'!F7 -> 0.0295 | G7: ='Lönekostnad FINANSIÄR'!G7 -> 0 | H7: 18986.12651 | I7: 10184.15826 | J7: =H7+I7 -> 29170.28477 | K7: 19460.77967 | L7: 10438.76222 | M7: =K7+L7 -> 29899.54189 | N7: 19947.29917 | O7: 10699.73127 | P7: =N7+O7 -> 30647.03044 | Q7: 20445.98164 | R7: 10967.22455 | S7: =Q7+R7 -> 31413.2062 | T7: 0 | U7: 0 | V7: =T7+U7 -> 0 | W7: =H7+K7+N7+Q7+T7 -> 78840.18699 | X7: 42289.8763 | Y7: =W7+X7 -> 121130.0633 | AA7: =Y7-Z7 -> 121130.0633
A8: ='Lönekostnad FINANSIÄR'!A8 -> Doktorand (snittlön doktorandtrappa 2022) | B8: ='Lönekostnad FINANSIÄR'!B8 -> 31500 | C8: ='Lönekostnad FINANSIÄR'!C8 -> 1 | D8: ='Lönekostnad FINANSIÄR'!D8 -> 1 | E8: ='Lönekostnad FINANSIÄR'!E8 -> 1 | F8: ='Lönekostnad FINANSIÄR'!F8 -> 1 | G8: ='Lönekostnad FINANSIÄR'!G8 -> 0 | H8: 389871.5678 | I8: 209127.109 | J8: 598998.6768 | K8: 399618.357 | L8: 214355.2867 | M8: 613973.6438 | N8: 409608.816 | O8: 219714.1689 | P8: 629322.9849 | Q8: 419849.0364 | R8: 225207.0231 | S8: 645056.0595 | T8: 0 | U8: 0 | V8: 0 | W8: 1618947.777 | X8: 868403.5877 | Y8: 2487351.365 | AA8: =Y8-Z8 -> 2487351.365
A9: ='Lönekostnad FINANSIÄR'!A9 -> Opponent | B9: ='Lönekostnad FINANSIÄR'!B9 -> 62000 | C9: ='Lönekostnad FINANSIÄR'!C9 -> 0 | D9: ='Lönekostnad FINANSIÄR'!D9 -> 0 | E9: ='Lönekostnad FINANSIÄR'!E9 -> 0 | F9: ='Lönekostnad FINANSIÄR'!F9 -> 0.01 | G9: ='Lönekostnad FINANSIÄR'!G9 -> 0 | H9: 0 | I9: 0 | J9: 0 | K9: 0 | L9: 0 | M9: 0 | N9: 0 | O9: 0 | P9: 0 | Q9: 8263.695319 | R9: 4432.646169 | S9: 12696.34149 | T9: 0 | U9: 0 | V9: 0 | W9: 8263.695319 | X9: 4432.646169 | Y9: 12696.34149 | AA9: =Y9-Z9 -> 12696.34149
A10: ='Lönekostnad FINANSIÄR'!A10 -> Doktorandkurser 60 hp, | B10: ='Lönekostnad FINANSIÄR'!B10 -> 55000 | C10: ='Lönekostnad FINANSIÄR'!C10 -> 0.02352941176 | D10: ='Lönekostnad FINANSIÄR'!D10 -> 0.02352941176 | E10: ='Lönekostnad FINANSIÄR'!E10 -> 0.02352941176 | F10: ='Lönekostnad FINANSIÄR'!F10 -> 0.02352941176 | G10: ='Lönekostnad FINANSIÄR'!G10 -> 0 | H10: 16017.13257 | I10: 8591.589912 | J10: 24608.72248 | K10: 16417.56089 | L10: 8806.37966 | M10: 25223.94055 | N10: 16827.99991 | O10: 9026.539151 | P10: 25854.53906 | Q10: 17248.69991 | R10: 9252.20263 | S10: 26500.90254 | T10: 0 | U10: 0 | V10: 0 | W10: 66511.39328 | X10: 35676.71135 | Y10: 102188.1046 | AA10: 102188.1046
A11: ='Lönekostnad FINANSIÄR'!A11 -> (totalt 8 kurser * 7,5 hp 20 timmar/kurs för doktoranden) | B11: ='Lönekostnad FINANSIÄR'!B11 -> 0 | C11: ='Lönekostnad FINANSIÄR'!C11 -> 0 | D11: ='Lönekostnad FINANSIÄR'!D11 -> 0 | E11: ='Lönekostnad FINANSIÄR'!E11 -> 0 | F11: ='Lönekostnad FINANSIÄR'!F11 -> 0 | G11: ='Lönekostnad FINANSIÄR'!G11 -> 0 | H11: 0 | I11: 0 | J11: 0 | K11: 0 | L11: 0 | M11: 0 | N11: 0 | O11: 0 | P11: 0 | Q11: 0 | R11: 0 | S11: 0 | T11: 0 | U11: 0 | V11: 0 | W11: 0 | X11: 0 | Y11: 0 | AA11: 0
A12: ='Lönekostnad FINANSIÄR'!A12 -> 0 | B12: ='Lönekostnad FINANSIÄR'!B12 -> 0 | C12: ='Lönekostnad FINANSIÄR'!C12 -> 0 | D12: ='Lönekostnad FINANSIÄR'!D12 -> 0 | E12: ='Lönekostnad FINANSIÄR'!E12 -> 0 | F12: ='Lönekostnad FINANSIÄR'!F12 -> 0 | G12: ='Lönekostnad FINANSIÄR'!G12 -> 0 | H12: 0 | I12: 0 | J12: 0 | K12: 0 | L12: 0 | M12: 0 | N12: 0 | O12: 0 | P12: 0 | Q12: 0 | R12: 0 | S12: 0 | T12: 0 | U12: 0 | V12: 0 | W12: 0 | X12: 0 | Y12: 0 | AA12: 0
A13: ='Lönekostnad FINANSIÄR'!A13 -> 0 | B13: ='Lönekostnad FINANSIÄR'!B13 -> 0 | C13: ='Lönekostnad FINANSIÄR'!C13 -> 0 | D13: ='Lönekostnad FINANSIÄR'!D13 -> 0 | E13: ='Lönekostnad FINANSIÄR'!E13 -> 0 | F13: ='Lönekostnad FINANSIÄR'!F13 -> 0 | G13: ='Lönekostnad FINANSIÄR'!G13 -> 0 | H13: 0 | I13: 0 | J13: 0 | K13: 0 | L13: 0 | M13: 0 | N13: 0 | O13: 0 | P13: 0 | Q13: 0 | R13: 0 | S13: 0 | T13: 0 | U13: 0 | V13: 0 | W13: 0 | X13: 0 | Y13: 0 | AA13: 0
A14: ='Lönekostnad FINANSIÄR'!A14 -> 0 | B14: ='Lönekostnad FINANSIÄR'!B14 -> 0 | C14: ='Lönekostnad FINANSIÄR'!C14 -> 0 | D14: ='Lönekostnad FINANSIÄR'!D14 -> 0 | E14: ='Lönekostnad FINANSIÄR'!E14 -> 0 | F14: ='Lönekostnad FINANSIÄR'!F14 -> 0 | G14: ='Lönekostnad FINANSIÄR'!G14 -> 0 | H14: 0 | I14: 0 | J14: 0 | K14: 0 | L14: 0 | M14: 0 | N14: 0 | O14: 0 | P14: 0 | Q14: 0 | R14: 0 | S14: 0 | T14: 0 | U14: 0 | V14: 0 | W14: 0 | X14: 0 | Y14: 0 | AA14: 0
A15: ='Lönekostnad FINANSIÄR'!A15 -> 0 | B15: ='Lönekostnad FINANSIÄR'!B15 -> 0 | C15: ='Lönekostnad FINANSIÄR'!C15 -> 0 | D15: ='Lönekostnad FINANSIÄR'!D15 -> 0 | E15: ='Lönekostnad FINANSIÄR'!E15 -> 0 | F15: ='Lönekostnad FINANSIÄR'!F15 -> 0 | G15: ='Lönekostnad FINANSIÄR'!G15 -> 0 | H15: 0 | I15: 0 | J15: 0 | K15: 0 | L15: 0 | M15: 0 | N15: 0 | O15: 0 | P15: 0 | Q15: 0 | R15: 0 | S15: 0 | T15: 0 | U15: 0 | V15: 0 | W15: 0 | X15: 0 | Y15: 0 | AA15: 0
A16: ='Lönekostnad FINANSIÄR'!A16 -> 0 | B16: ='Lönekostnad FINANSIÄR'!B16 -> 0 | C16: ='Lönekostnad FINANSIÄR'!C16 -> 0 | D16: ='Lönekostnad FINANSIÄR'!D16 -> 0 | E16: ='Lönekostnad FINANSIÄR'!E16 -> 0 | F16: ='Lönekostnad FINANSIÄR'!F16 -> 0 | G16: ='Lönekostnad FINANSIÄR'!G16 -> 0 | H16: 0 | I16: 0 | J16: 0 | K16: 0 | L16: 0 | M16: 0 | N16: 0 | O16: 0 | P16: 0 | Q16: 0 | R16: 0 | S16: 0 | T16: 0 | U16: 0 | V16: 0 | W16: 0 | X16: 0 | Y16: 0 | AA16: 0
A17: ='Lönekostnad FINANSIÄR'!A17 -> 0 | B17: ='Lönekostnad FINANSIÄR'!B17 -> 0 | C17: ='Lönekostnad FINANSIÄR'!C17 -> 0 | D17: ='Lönekostnad FINANSIÄR'!D17 -> 0 | E17: ='Lönekostnad FINANSIÄR'!E17 -> 0 | F17: ='Lönekostnad FINANSIÄR'!F17 -> 0 | G17: ='Lönekostnad FINANSIÄR'!G17 -> 0 | H17: 0 | I17: 0 | J17: 0 | K17: 0 | L17: 0 | M17: 0 | N17: 0 | O17: 0 | P17: 0 | Q17: 0 | R17: 0 | S17: 0 | T17: 0 | U17: 0 | V17: 0 | W17: 0 | X17: 0 | Y17: 0 | AA17: 0
A18: ='Lönekostnad FINANSIÄR'!A18 -> 0 | B18: ='Lönekostnad FINANSIÄR'!B18 -> 0 | C18: ='Lönekostnad FINANSIÄR'!C18 -> 0 | D18: ='Lönekostnad FINANSIÄR'!D18 -> 0 | E18: ='Lönekostnad FINANSIÄR'!E18 -> 0 | F18: ='Lönekostnad FINANSIÄR'!F18 -> 0 | G18: ='Lönekostnad FINANSIÄR'!G18 -> 0 | H18: 0 | I18: 0 | J18: 0 | K18: 0 | L18: 0 | M18: 0 | N18: 0 | O18: 0 | P18: 0 | Q18: 0 | R18: 0 | S18: 0 | T18: 0 | U18: 0 | V18: 0 | W18: 0 | X18: 0 | Y18: 0 | AA18: 0
A19: ='Lönekostnad FINANSIÄR'!A19 -> 0 | B19: ='Lönekostnad FINANSIÄR'!B19 -> 0 | C19: ='Lönekostnad FINANSIÄR'!C19 -> 0 | D19: ='Lönekostnad FINANSIÄR'!D19 -> 0 | E19: ='Lönekostnad FINANSIÄR'!E19 -> 0 | F19: ='Lönekostnad FINANSIÄR'!F19 -> 0 | G19: ='Lönekostnad FINANSIÄR'!G19 -> 0 | H19: 0 | I19: 0 | J19: 0 | K19: 0 | L19: 0 | M19: 0 | N19: 0 | O19: 0 | P19: 0 | Q19: 0 | R19: 0 | S19: 0 | T19: 0 | U19: 0 | V19: 0 | W19: 0 | X19: 0 | Y19: 0 | AA19: 0
A20: ='Lönekostnad FINANSIÄR'!A20 -> 0 | B20: ='Lönekostnad FINANSIÄR'!B20 -> 0 | C20: ='Lönekostnad FINANSIÄR'!C20 -> 0 | D20: ='Lönekostnad FINANSIÄR'!D20 -> 0 | E20: ='Lönekostnad FINANSIÄR'!E20 -> 0 | F20: ='Lönekostnad FINANSIÄR'!F20 -> 0 | G20: ='Lönekostnad FINANSIÄR'!G20 -> 0 | H20: 0 | I20: 0 | J20: 0 | K20: 0 | L20: 0 | M20: 0 | N20: 0 | O20: 0 | P20: 0 | Q20: 0 | R20: 0 | S20: 0 | T20: 0 | U20: 0 | V20: 0 | W20: 0 | X20: 0 | Y20: 0 | AA20: 0
A21: ='Lönekostnad FINANSIÄR'!A21 -> 0 | B21: ='Lönekostnad FINANSIÄR'!B21 -> 0 | C21: ='Lönekostnad FINANSIÄR'!C21 -> 0 | D21: ='Lönekostnad FINANSIÄR'!D21 -> 0 | E21: ='Lönekostnad FINANSIÄR'!E21 -> 0 | F21: ='Lönekostnad FINANSIÄR'!F21 -> 0 | G21: ='Lönekostnad FINANSIÄR'!G21 -> 0 | H21: 0 | I21: 0 | J21: 0 | K21: 0 | L21: 0 | M21: 0 | N21: 0 | O21: 0 | P21: 0 | Q21: 0 | R21: 0 | S21: 0 | T21: 0 | U21: 0 | V21: 0 | W21: 0 | X21: 0 | Y21: 0 | AA21: 0
A22: ='Lönekostnad FINANSIÄR'!A22 -> 0 | B22: ='Lönekostnad FINANSIÄR'!B22 -> 0 | C22: ='Lönekostnad FINANSIÄR'!C22 -> 0 | D22: ='Lönekostnad FINANSIÄR'!D22 -> 0 | E22: ='Lönekostnad FINANSIÄR'!E22 -> 0 | F22: ='Lönekostnad FINANSIÄR'!F22 -> 0 | G22: ='Lönekostnad FINANSIÄR'!G22 -> 0 | H22: 0 | I22: 0 | J22: 0 | K22: 0 | L22: 0 | M22: 0 | N22: 0 | O22: 0 | P22: 0 | Q22: 0 | R22: 0 | S22: 0 | T22: 0 | U22: 0 | V22: 0 | W22: 0 | X22: 0 | Y22: 0 | AA22: 0
A23: ='Lönekostnad FINANSIÄR'!A23 -> 0 | B23: ='Lönekostnad FINANSIÄR'!B23 -> 0 | C23: ='Lönekostnad FINANSIÄR'!C23 -> 0 | D23: ='Lönekostnad FINANSIÄR'!D23 -> 0 | E23: ='Lönekostnad FINANSIÄR'!E23 -> 0 | F23: ='Lönekostnad FINANSIÄR'!F23 -> 0 | G23: ='Lönekostnad FINANSIÄR'!G23 -> 0 | H23: 0 | I23: 0 | J23: 0 | K23: 0 | L23: 0 | M23: 0 | N23: 0 | O23: 0 | P23: 0 | Q23: 0 | R23: 0 | S23: 0 | T23: 0 | U23: 0 | V23: 0 | W23: 0 | X23: 0 | Y23: 0 | AA23: 0
A24: ='Lönekostnad FINANSIÄR'!A24 -> 0 | B24: ='Lönekostnad FINANSIÄR'!B24 -> 0 | C24: ='Lönekostnad FINANSIÄR'!C24 -> 0 | D24: ='Lönekostnad FINANSIÄR'!D24 -> 0 | E24: ='Lönekostnad FINANSIÄR'!E24 -> 0 | F24: ='Lönekostnad FINANSIÄR'!F24 -> 0 | G24: ='Lönekostnad FINANSIÄR'!G24 -> 0 | H24: 0 | I24: 0 | J24: 0 | K24: 0 | L24: 0 | M24: 0 | N24: 0 | O24: 0 | P24: 0 | Q24: 0 | R24: 0 | S24: 0 | T24: 0 | U24: 0 | V24: 0 | W24: 0 | X24: 0 | Y24: 0 | AA24: 0
A25: ='Lönekostnad FINANSIÄR'!A25 -> 0 | B25: ='Lönekostnad FINANSIÄR'!B25 -> 0 | C25: ='Lönekostnad FINANSIÄR'!C25 -> 0 | D25: ='Lönekostnad FINANSIÄR'!D25 -> 0 | E25: ='Lönekostnad FINANSIÄR'!E25 -> 0 | F25: ='Lönekostnad FINANSIÄR'!F25 -> 0 | G25: ='Lönekostnad FINANSIÄR'!G25 -> 0 | H25: 0 | I25: 0 | J25: 0 | K25: 0 | L25: 0 | M25: 0 | N25: 0 | O25: 0 | P25: 0 | Q25: 0 | R25: 0 | S25: 0 | T25: 0 | U25: 0 | V25: 0 | W25: 0 | X25: 0 | Y25: 0 | AA25: 0
A26: ='Lönekostnad FINANSIÄR'!A26 -> 0 | B26: ='Lönekostnad FINANSIÄR'!B26 -> 0 | C26: ='Lönekostnad FINANSIÄR'!C26 -> 0 | D26: ='Lönekostnad FINANSIÄR'!D26 -> 0 | E26: ='Lönekostnad FINANSIÄR'!E26 -> 0 | F26: ='Lönekostnad FINANSIÄR'!F26 -> 0 | G26: ='Lönekostnad FINANSIÄR'!G26 -> 0 | H26: 0 | I26: 0 | J26: 0 | K26: 0 | L26: 0 | M26: 0 | N26: 0 | O26: 0 | P26: 0 | Q26: 0 | R26: 0 | S26: 0 | T26: 0 | U26: 0 | V26: 0 | W26: 0 | X26: 0 | Y26: 0 | AA26: 0
A27: ='Lönekostnad FINANSIÄR'!A27 -> 0 | B27: ='Lönekostnad FINANSIÄR'!B27 -> 0 | C27: ='Lönekostnad FINANSIÄR'!C27 -> 0 | D27: ='Lönekostnad FINANSIÄR'!D27 -> 0 | E27: ='Lönekostnad FINANSIÄR'!E27 -> 0 | F27: ='Lönekostnad FINANSIÄR'!F27 -> 0 | G27: ='Lönekostnad FINANSIÄR'!G27 -> 0 | H27: 0 | I27: 0 | J27: 0 | K27: 0 | L27: 0 | M27: 0 | N27: 0 | O27: 0 | P27: 0 | Q27: 0 | R27: 0 | S27: 0 | T27: 0 | U27: 0 | V27: 0 | W27: 0 | X27: 0 | Y27: 0 | AA27: 0
A28: ='Lönekostnad FINANSIÄR'!A28 -> 0 | B28: ='Lönekostnad FINANSIÄR'!B28 -> 0 | C28: ='Lönekostnad FINANSIÄR'!C28 -> 0 | D28: ='Lönekostnad FINANSIÄR'!D28 -> 0 | E28: ='Lönekostnad FINANSIÄR'!E28 -> 0 | F28: ='Lönekostnad FINANSIÄR'!F28 -> 0 | G28: ='Lönekostnad FINANSIÄR'!G28 -> 0 | H28: 0 | I28: 0 | J28: 0 | K28: 0 | L28: 0 | M28: 0 | N28: 0 | O28: 0 | P28: 0 | Q28: 0 | R28: 0 | S28: 0 | T28: 0 | U28: 0 | V28: 0 | W28: 0 | X28: 0 | Y28: 0 | AA28: 0
A29: ='Lönekostnad FINANSIÄR'!A29 -> 0 | B29: ='Lönekostnad FINANSIÄR'!B29 -> 0 | C29: ='Lönekostnad FINANSIÄR'!C29 -> 0 | D29: ='Lönekostnad FINANSIÄR'!D29 -> 0 | E29: ='Lönekostnad FINANSIÄR'!E29 -> 0 | F29: ='Lönekostnad FINANSIÄR'!F29 -> 0 | G29: ='Lönekostnad FINANSIÄR'!G29 -> 0 | H29: 0 | I29: 0 | J29: 0 | K29: 0 | L29: 0 | M29: 0 | N29: 0 | O29: 0 | P29: 0 | Q29: 0 | R29: 0 | S29: 0 | T29: 0 | U29: 0 | V29: 0 | W29: 0 | X29: 0 | Y29: 0 | AA29: 0
A30: ='Lönekostnad FINANSIÄR'!A30 -> 0 | B30: ='Lönekostnad FINANSIÄR'!B30 -> 0 | C30: ='Lönekostnad FINANSIÄR'!C30 -> 0 | D30: ='Lönekostnad FINANSIÄR'!D30 -> 0 | E30: ='Lönekostnad FINANSIÄR'!E30 -> 0 | F30: ='Lönekostnad FINANSIÄR'!F30 -> 0 | G30: ='Lönekostnad FINANSIÄR'!G30 -> 0 | H30: 0 | I30: 0 | J30: 0 | K30: 0 | L30: 0 | M30: 0 | N30: 0 | O30: 0 | P30: 0 | Q30: 0 | R30: 0 | S30: 0 | T30: 0 | U30: 0 | V30: 0 | W30: 0 | X30: 0 | Y30: 0 | AA30: 0
A31: ='Lönekostnad FINANSIÄR'!A31 -> 0 | B31: ='Lönekostnad FINANSIÄR'!B31 -> 0 | C31: ='Lönekostnad FINANSIÄR'!C31 -> 0 | D31: ='Lönekostnad FINANSIÄR'!D31 -> 0 | E31: ='Lönekostnad FINANSIÄR'!E31 -> 0 | F31: ='Lönekostnad FINANSIÄR'!F31 -> 0 | G31: ='Lönekostnad FINANSIÄR'!G31 -> 0 | H31: 0 | I31: 0 | J31: 0 | K31: 0 | L31: 0 | M31: 0 | N31: 0 | O31: 0 | P31: 0 | Q31: 0 | R31: 0 | S31: 0 | T31: 0 | U31: 0 | V31: 0 | W31: 0 | X31: 0 | Y31: 0 | AA31: 0
A32: ='Lönekostnad FINANSIÄR'!A32 -> 0 | B32: ='Lönekostnad FINANSIÄR'!B32 -> 0 | C32: ='Lönekostnad FINANSIÄR'!C32 -> 0 | D32: ='Lönekostnad FINANSIÄR'!D32 -> 0 | E32: ='Lönekostnad FINANSIÄR'!E32 -> 0 | F32: ='Lönekostnad FINANSIÄR'!F32 -> 0 | G32: ='Lönekostnad FINANSIÄR'!G32 -> 0 | H32: 0 | I32: 0 | J32: 0 | K32: 0 | L32: 0 | M32: 0 | N32: 0 | O32: 0 | P32: 0 | Q32: 0 | R32: 0 | S32: 0 | T32: 0 | U32: 0 | V32: 0 | W32: 0 | X32: 0 | Y32: 0 | AA32: 0
A33: ='Lönekostnad FINANSIÄR'!A33 -> 0 | B33: ='Lönekostnad FINANSIÄR'!B33 -> 0 | C33: ='Lönekostnad FINANSIÄR'!C33 -> 0 | D33: ='Lönekostnad FINANSIÄR'!D33 -> 0 | E33: ='Lönekostnad FINANSIÄR'!E33 -> 0 | F33: ='Lönekostnad FINANSIÄR'!F33 -> 0 | G33: ='Lönekostnad FINANSIÄR'!G33 -> 0 | H33: 0 | I33: 0 | J33: 0 | K33: 0 | L33: 0 | M33: 0 | N33: 0 | O33: 0 | P33: 0 | Q33: 0 | R33: 0 | S33: 0 | T33: 0 | U33: 0 | V33: 0 | W33: 0 | X33: 0 | Y33: 0 | AA33: 0
A34: ='Lönekostnad FINANSIÄR'!A34 -> 0 | B34: ='Lönekostnad FINANSIÄR'!B34 -> 0 | C34: ='Lönekostnad FINANSIÄR'!C34 -> 0 | D34: ='Lönekostnad FINANSIÄR'!D34 -> 0 | E34: ='Lönekostnad FINANSIÄR'!E34 -> 0 | F34: ='Lönekostnad FINANSIÄR'!F34 -> 0 | G34: ='Lönekostnad FINANSIÄR'!G34 -> 0 | H34: 0 | I34: 0 | J34: 0 | K34: 0 | L34: 0 | M34: 0 | N34: 0 | O34: 0 | P34: 0 | Q34: 0 | R34: 0 | S34: 0 | T34: 0 | U34: 0 | V34: 0 | W34: 0 | X34: 0 | Y34: 0 | AA34: 0
A35: ='Lönekostnad FINANSIÄR'!A35 -> 0 | B35: ='Lönekostnad FINANSIÄR'!B35 -> 0 | C35: ='Lönekostnad FINANSIÄR'!C35 -> 0 | D35: ='Lönekostnad FINANSIÄR'!D35 -> 0 | E35: ='Lönekostnad FINANSIÄR'!E35 -> 0 | F35: ='Lönekostnad FINANSIÄR'!F35 -> 0 | G35: ='Lönekostnad FINANSIÄR'!G35 -> 0 | H35: 0 | I35: 0 | J35: 0 | K35: 0 | L35: 0 | M35: 0 | N35: 0 | O35: 0 | P35: 0 | Q35: 0 | R35: 0 | S35: 0 | T35: 0 | U35: 0 | V35: 0 | W35: 0 | X35: 0 | Y35: 0 | AA35: 0
A36: ='Lönekostnad FINANSIÄR'!A36 -> 0 | B36: ='Lönekostnad FINANSIÄR'!B36 -> 0 | C36: ='Lönekostnad FINANSIÄR'!C36 -> 0 | D36: ='Lönekostnad FINANSIÄR'!D36 -> 0 | E36: ='Lönekostnad FINANSIÄR'!E36 -> 0 | F36: ='Lönekostnad FINANSIÄR'!F36 -> 0 | G36: ='Lönekostnad FINANSIÄR'!G36 -> 0 | H36: 0 | I36: 0 | J36: 0 | K36: 0 | L36: 0 | M36: 0 | N36: 0 | O36: 0 | P36: 0 | Q36: 0 | R36: 0 | S36: 0 | T36: 0 | U36: 0 | V36: 0 | W36: 0 | X36: 0 | Y36: 0 | AA36: 0
A37: ='Lönekostnad FINANSIÄR'!A37 -> 0 | B37: ='Lönekostnad FINANSIÄR'!B37 -> 0 | C37: ='Lönekostnad FINANSIÄR'!C37 -> 0 | D37: ='Lönekostnad FINANSIÄR'!D37 -> 0 | E37: ='Lönekostnad FINANSIÄR'!E37 -> 0 | F37: ='Lönekostnad FINANSIÄR'!F37 -> 0 | G37: ='Lönekostnad FINANSIÄR'!G37 -> 0 | H37: 0 | I37: 0 | J37: 0 | K37: 0 | L37: 0 | M37: 0 | N37: 0 | O37: 0 | P37: 0 | Q37: 0 | R37: 0 | S37: 0 | T37: 0 | U37: 0 | V37: 0 | W37: 0 | X37: 0 | Y37: 0 | AA37: 0
A38: ='Lönekostnad FINANSIÄR'!A38 -> 0 | B38: ='Lönekostnad FINANSIÄR'!B38 -> 0 | C38: ='Lönekostnad FINANSIÄR'!C38 -> 0 | D38: ='Lönekostnad FINANSIÄR'!D38 -> 0 | E38: ='Lönekostnad FINANSIÄR'!E38 -> 0 | F38: ='Lönekostnad FINANSIÄR'!F38 -> 0 | G38: ='Lönekostnad FINANSIÄR'!G38 -> 0 | H38: 0 | I38: 0 | J38: 0 | K38: 0 | L38: 0 | M38: 0 | N38: 0 | O38: 0 | P38: 0 | Q38: 0 | R38: 0 | S38: 0 | T38: 0 | U38: 0 | V38: 0 | W38: 0 | X38: 0 | Y38: 0 | AA38: 0
A39: ='Lönekostnad FINANSIÄR'!A39 -> 0 | B39: ='Lönekostnad FINANSIÄR'!B39 -> 0 | C39: ='Lönekostnad FINANSIÄR'!C39 -> 0 | D39: ='Lönekostnad FINANSIÄR'!D39 -> 0 | E39: ='Lönekostnad FINANSIÄR'!E39 -> 0 | F39: ='Lönekostnad FINANSIÄR'!F39 -> 0 | G39: ='Lönekostnad FINANSIÄR'!G39 -> 0 | H39: 0 | I39: 0 | J39: 0 | K39: 0 | L39: 0 | M39: 0 | N39: 0 | O39: 0 | P39: 0 | Q39: 0 | R39: 0 | S39: 0 | T39: 0 | U39: 0 | V39: 0 | W39: 0 | X39: 0 | Y39: 0 | AA39: 0
A40: ='Lönekostnad FINANSIÄR'!A40 -> 0 | B40: ='Lönekostnad FINANSIÄR'!B40 -> 0 | C40: ='Lönekostnad FINANSIÄR'!C40 -> 0 | D40: ='Lönekostnad FINANSIÄR'!D40 -> 0 | E40: ='Lönekostnad FINANSIÄR'!E40 -> 0 | F40: ='Lönekostnad FINANSIÄR'!F40 -> 0 | G40: ='Lönekostnad FINANSIÄR'!G40 -> 0 | H40: 0 | I40: 0 | J40: 0 | K40: 0 | L40: 0 | M40: 0 | N40: 0 | O40: 0 | P40: 0 | Q40: 0 | R40: 0 | S40: 0 | T40: 0 | U40: 0 | V40: 0 | W40: 0 | X40: 0 | Y40: 0 | AA40: 0
A41: Summa lönekostnader | H41: =SUM(H6:H40) -> 450433.0742 | I41: =SUM(I6:I40) -> 241612.301 | J41: =SUM(J6:J40) -> 692045.3751 | K41: =SUM(K6:K40) -> 461693.901 | L41: 247652.6085 | M41: 709346.5095 | N41: 473236.2485 | O41: 253843.9237 | P41: 727080.1723 | Q41: 493330.8501 | R41: 264622.668 | S41: 757953.518 | T41: 0 | U41: 0 | V41: 0 | W41: 1878694.074 | X41: 1007731.501 | Y41: 2886425.575 | Z41: =SUM(Z6:Z40) -> 0 | AA41: =SUM(AA6:AA40) -> 2886425.575

Sheet Resekostnader
A1: RESEKOSTNADER
A2: ="Projekt: "&Grunduppgifter!$B$5 -> Projekt:
B3: Kostnad
A4: Resekostnader | B4: År 1 | C4: År 2 | D4: År 3 | E4: År 4 | F4: År 5 | G4: Summa | H4: Budget | I4: Diff
A5: Resor | B5: 5000 | C5: 5000 | D5: 5000 | E5: 5000 | G5: =SUM(B5:F5) -> 20000 | I5: =G5-H5 -> 20000
A6: Konferenser | B6: 10000 | C6: 10000 | D6: 10000 | E6: 10000 | G6: =SUM(B6:F6) -> 40000 | I6: 40000
A7: Opponent disputation resa+hotell | E7: 10000 | G7: 10000 | I7: 10000
G8: 0 | I8: 0
G9: 0 | I9: 0
G10: 0 | I10: 0
G11: 0 | I11: 0
G12: 0 | I12: 0
G13: 0 | I13: 0
G14: 0 | I14: 0
G15: 0 | I15: 0
G16: 0 | I16: 0
G17: 0 | I17: 0
G18: 0 | I18: 0
G19: 0 | I19: 0
G20: 0 | I20: 0
G21: 0 | I21: 0
G22: 0 | I22: 0
G23: 0 | I23: 0
G24: 0 | I24: 0
G25: 0 | I25: 0
G26: 0 | I26: 0
G27: 0 | I27: 0
G28: 0 | I28: 0
G29: 0 | I29: 0
G30: 0 | I30: 0
G31: 0 | I31: 0
G32: 0 | I32: 0
G33: 0 | I33: 0
G34: 0 | I34: 0
G35: 0 | I35: 0
G36: 0 | I36: 0
G37: 0 | I37: 0
G38: 0 | I38: 0
G39: 0 | I39: 0
A40: Summa resekostnader | B40: =SUM(B5:B39) -> 15000 | C40: 15000 | D40: 15000 | E40: 25000 | F40: 0 | G40: 70000 | H40: 0 | I40: 70000

Sheet Externa tjänster
A1: KOSTNADER FÖR EXTERNA TJÄNSTER
A2: ="Projekt: "&Grunduppgifter!$B$5 -> Projekt:
B3: Kostnad
A4: Externa tjänster | B4: År 1 | C4: År 2 | D4: År 3 | E4: År 4 | F4: År 5 | G4: Summa | H4: Budget | I4: Diff
A5: Språkgranskning | E5: 8000 | G5: =SUM(B5:F5) -> 8000 | I5: =G5-H5 -> 8000
A6: Översättning | G6: =SUM(B6:F6) -> 0 | I6: 0
A7: Open Access | G7: 0 | I7: 0
A8: Publicering | G8: 0 | I8: 0
A9: Konsult | G9: 0 | I9: 0
A10: Extern sakkunskap | G10: 0 | I10: 0
A11: Representation Disputation | E11: 3000 | G11: 3000 | I11: 3000
A12: Mobilabonnemang | B12: 800 | C12: 800 | D12: 800 | E12: 800 | G12: 3200 | I12: 3200
G13: 0 | I13: 0
G14: 0 | I14: 0
G15: 0 | I15: 0
G16: 0 | I16: 0
G17: 0 | I17: 0
G18: 0 | I18: 0
G19: 0 | I19: 0
G20: 0 | I20: 0
G21: 0 | I21: 0
G22: 0 | I22: 0
G23: 0 | I23: 0
G24: 0 | I24: 0
G25: 0 | I25: 0
G26: 0 | I26: 0
G27: 0 | I27: 0
G28: 0 | I28: 0
G29: 0 | I29: 0
G30: 0 | I30: 0
G31: 0 | I31: 0
G32: 0 | I32: 0
G33: 0 | I33: 0
G34: 0 | I34: 0
G35: 0 | I35: 0
G36: 0 | I36: 0
G37: 0 | I37: 0
G38: 0 | I38: 0
G39: 0 | I39: 0
A40: Summa externa tjänster | B40: =SUM(B5:B39) -> 800 | C40: 800 | D40: 800 | E40: 11800 | F40: 0 | G40: 14200 | H40: 0 | I40: 14200

Sheet Övriga kostnader
A1: ÖVRIGA KOSTNADER
A2: ="Projekt: "&Grunduppgifter!$B$5 -> Projekt:
B3: Kostnad
A4: Övriga kostnader | B4: År 1 | C4: År 2 | D4: År 3 | E4: År 4 | F4: År 5 | G4: Summa | H4: Budget | I4: Diff
A5: Datorer (> 5 - < 20 tkr) | B5: 15000 | G5: =SUM(B5:F5) -> 15000 | I5: =G5-H5 -> 15000
A6: Utrustning (> 5 - < 20 tkr) Mobiltelefon | B6: 5000 | G6: =SUM(B6:F6) -> 5000 | I6: 5000
A7: Litteratur | G7: 0 | I7: 0
A8: Möten | G8: 0 | I8: 0
A9: Workshops | G9: 0 | I9: 0
A10: Tryckning avhandling | E10: 15000 | G10: 15000 | I10: 15000
A11: Förbrukningsmaterial, tex labmaterial | B11: 25000 | C11: 25000 | D11: 25000 | E11: 25000 | G11: 100000 | I11: 100000
G12: 0 | I12: 0
G13: 0 | I13: 0
G14: 0 | I14: 0
G15: 0 | I15: 0
G16: 0 | I16: 0
G17: 0 | I17: 0
G18: 0 | I18: 0
G19: 0 | I19: 0
G20: 0 | I20: 0
G21: 0 | I21: 0
G22: 0 | I22: 0
G23: 0 | I23: 0
G24: 0 | I24: 0
G25: 0 | I25: 0
G26: 0 | I26: 0
G27: 0 | I27: 0
G28: 0 | I28: 0
G29: 0 | I29: 0
G30: 0 | I30: 0
G31: 0 | I31: 0
G32: 0 | I32: 0
G33: 0 | I33: 0
G34: 0 | I34: 0
G35: 0 | I35: 0
G36: 0 | I36: 0
G37: 0 | I37: 0
G38: 0 | I38: 0
G39: 0 | I39: 0
A40: Summa övriga kostnader | B40: =SUM(B5:B39) -> 45000 | C40: 25000 | D40: 25000 | E40: 40000 | F40: 0 | G40: 135000 | H40: 0 | I40: 135000

Sheet Lokalkostnader
A1: LOKALKOSTNADER
A2: ="Projekt: "&Grunduppgifter!$B$5 -> Projekt:
J3: Kostnad
A4: Tjänsterum | E4: Omfattning % | J4: År 1 | K4: År 2 | L4: År 3 | M4: År 4 | N4: År 5 | O4: Summa | P4: Budget | Q4: Diff
C5: kvm | D5: Kr/kvm/år | E5: År 1 | F5: År 2 | G5: År 3 | H5: År 4 | I5: År 5 | Q5: =O5-P5 -> 0
A6: Tjänsterum | C6: 7 | D6: 2421 | J6: =$C6*$D6*E6 -> 0 | K6: =$C6*$D6*F6 -> 0 | L6: =$C6*$D6*G6 -> 0 | M6: =$C6*$D6*H6 -> 0 | N6: =$C6*$D6*I6 -> 0 | O6: =SUM(J6:N6) -> 0 | Q6: 0
A7: Tjänsterum | C7: 8 | D7: 2421 | E7: 1.08 | F7: 1.08 | G7: 1.08 | H7: 1.08 | J7: =$C7*$D7*E7 -> 20917.44 | K7: =$C7*$D7*F7 -> 20917.44 | L7: =$C7*$D7*G7 -> 20917.44 | M7: =$C7*$D7*H7 -> 20917.44 | N7: =$C7*$D7*I7 -> 0 | O7: 83669.76 | Q7: 83669.76
A8: Tjänsterum | C8: 9 | D8: 2421 | J8: 0 | K8: 0 | L8: 0 | M8: 0 | N8: 0 | O8: 0 | Q8: 0
A9: Tjänsterum | C9: 10 | D9: 2421 | J9: 0 | K9: 0 | L9: 0 | M9: 0 | N9: 0 | O9: 0 | Q9: 0
A10: Tjänsterum | C10: 11 | D10: 2421 | J10: 0 | K10: 0 | L10: 0 | M10: 0 | N10: 0 | O10: 0 | Q10: 0
A11: Tjänsterum | C11: 12 | D11: 2421 | J11: 0 | K11: 0 | L11: 0 | M11: 0 | N11: 0 | O11: 0 | Q11: 0
A12: Tjänsterum | C12: 13 | D12: 2421 | J12: 0 | K12: 0 | L12: 0 | M12: 0 | N12: 0 | O12: 0 | Q12: 0
A13: Tjänsterum | C13: 14 | D13: 2421 | J13: 0 | K13: 0 | L13: 0 | M13: 0 | N13: 0 | O13: 0 | Q13: 0
A14: Tjänsterum | C14: 15 | D14: 2421 | J14: 0 | K14: 0 | L14: 0 | M14: 0 | N14: 0 | O14: 0 | Q14: 0
A16: Interna lokaler | E16: Antal timmar | J16: År 1 | K16: År 2 | L16: År 3 | M16: År 4 | N16: År 5 | O16: Summa | P16: Budget | Q16: Diff
C17: Platser | D17: kr/timme | E17: År 1 | F17: År 2 | G17: År 3 | H17: År 4 | I17: År 5 | Q17: 0
A18: Sammanträdesrum | C18: 10 pl | D18: 180 | J18: =$D18*E18 -> 0 | K18: =$D18*F18 -> 0 | L18: =$D18*G18 -> 0 | M18: =$D18*H18 -> 0 | N18: =$D18*I18 -> 0 | O18: 0 | Q18: 0
A19: Sammanträdesrum | C19: 25 pl | D19: 250 | J19: =$D19*E19 -> 0 | K19: =$D19*F19 -> 0 | L19: =$D19*G19 -> 0 | M19: =$D19*H19 -> 0 | N19: =$D19*I19 -> 0 | O19: 0 | Q19: 0
A20: Lärosal | C20: 16-32 pl | D20: 280 | E20: 8 | F20: 8 | G20: 8 | H20: 8 | J20: 2240 | K20: 2240 | L20: 2240 | M20: 2240 | N20: 0 | O20: 8960 | Q20: 8960
A21: Lärosal | C21: 38-44 pl | D21: 290 | J21: 0 | K21: 0 | L21: 0 | M21: 0 | N21: 0 | O21: 0 | Q21: 0
A22: Lärosal | C22: 45-65 pl | D22: 320 | J22: 0 | K22: 0 | L22: 0 | M22: 0 | N22: 0 | O22: 0 | Q22: 0
A23: Lärosal | C23: 65 pl | D23: 350 | J23: 0 | K23: 0 | L23: 0 | M23: 0 | N23: 0 | O23: 0 | Q23: 0
A24: Hörsal | C24: 88-119 pl | D24: 390 | J24: 0 | K24: 0 | L24: 0 | M24: 0 | N24: 0 | O24: 0 | Q24: 0
A25: Hörsal M404 (Hightech) | C25: 120 pl | D25: 670 | J25: 0 | K25: 0 | L25: 0 | M25: 0 | N25: 0 | O25: 0 | Q25: 0
A26: Hörsal | C26: 120-145 pl | D26: 450 | J26: 0 | K26: 0 | L26: 0 | M26: 0 | N26: 0 | O26: 0 | Q26: 0
A27: Hörsal | C27: 200 pl | D27: 650 | J27: 0 | K27: 0 | L27: 0 | M27: 0 | N27: 0 | O27: 0 | Q27: 0
A28: Hörsal | C28: 250 pl | D28: 750 | J28: 0 | K28: 0 | L28: 0 | M28: 0 | N28: 0 | O28: 0 | Q28: 0
A29: Datorsal | D29: 590 | J29: 0 | K29: 0 | L29: 0 | M29: 0 | N29: 0 | O29: 0 | Q29: 0
A30: Lab | J30: =$D30*E30 -> 0 | K30: 0 | L30: 0 | M30: 0 | N30: 0 | O30: 0 | Q30: 0
A31: Lab | J31: 0 | K31: 0 | L31: 0 | M31: 0 | N31: 0 | O31: 0 | Q31: 0
A33: Externa lokaler | E33: Antal timmar | J33: År 1 | K33: År 2 | L33: År 3 | M33: År 4 | N33: År 5 | O33: Summa | P33: Budget | Q33: Diff
D34: kr/timme | E34: År 1 | F34: År 2 | G34: År 3 | H34: År 4 | I34: År 5
A35: Disputation | D35: 1000 | H35: 5 | J35: =$D35*E35 -> 0 | K35: 0 | L35: 0 | M35: 5000 | N35: 0 | O35: 5000 | Q35: 5000
J36: 0 | K36: 0 | L36: 0 | M36: 0 | N36: 0 | O36: 0 | Q36: 0
J37: 0 | K37: 0 | L37: 0 | M37: 0 | N37: 0 | O37: 0 | Q37: 0
J38: 0 | K38: 0 | L38: 0 | M38: 0 | N38: 0 | O38: 0 | Q38: 0
J39: 0 | K39: 0 | L39: 0 | M39: 0 | N39: 0 | O39: 0 | Q39: 0
J40: 0 | K40: 0 | L40: 0 | M40: 0 | N40: 0 | O40: 0 | Q40: 0
A41: Summa lokaler | J41: =SUM(J5:J40) -> 23157.44 | K41: 23157.44 | L41: 23157.44 | M41: 28157.44 | N41: 0 | O41: 97629.76 | P41: 0 | Q41: 97629.76

Sheet Utrustning och avskrivningar
A1: KOSTNADER FÖR UTRUSTNING OCH AVSKRIVNINGAR
A2: ="Projekt: "&Grunduppgifter!$B$5 -> Projekt:
J3: Kostnad
A4: Utrustning/avskrivningar | J4: År 1 | K4: År 2 | L4: År 3 | M4: År 4 | N4: År 5 | O4: Summa | P4: Budget | Q4: Diff
B5: Ansk.värde | C5: Livslängd (År): | D5: År 1 | E5: År 2 | F5: År 3 | G5: År 4 | H5: År 5
A6: Dator (> 20 tkr) | C6: 3 | I6: =B6/C6/12 -> 0 | J6: =D6*$I6 -> 0 | K6: =E6*$I6 -> 0 | L6: =F6*$I6 -> 0 | M6: =G6*$I6 -> 0 | N6: =H6*$I6 -> 0 | O6: =SUM(J6:N6) -> 0 | Q6: =O6-P6 -> 0
A7: Dator (> 20 tkr) | C7: 3 | I7: =B7/C7/12 -> 0 | J7: =D7*$I7 -> 0 | K7: =E7*$I7 -> 0 | L7: =F7*$I7 -> 0 | M7: =G7*$I7 -> 0 | N7: =H7*$I7 -> 0 | O7: 0 | Q7: 0
A8: Dator (> 20 tkr) | C8: 3 | I8: 0 | J8: 0 | K8: 0 | L8: 0 | M8: 0 | N8: 0 | O8: 0 | Q8: 0
A9: Dator (> 20 tkr) | C9: 5 | I9: 0 | J9: =D9*$I9 -> 0 | K9: 0 | L9: 0 | M9: 0 | N9: 0 | O9: =SUM(J9:N9) -> 0 | Q9: =O9-P9 -> 0
A10: Dator (> 20 tkr) | C10: 5 | I10: 0 | J10: 0 | K10: =E10*$I10 -> 0 | L10: 0 | M10: 0 | N10: 0 | O10: 0 | Q10: 0
A11: Dator (> 20 tkr) | C11: 5 | I11: 0 | J11: 0 | K11: 0 | L11: 0 | M11: 0 | N11: 0 | O11: 0 | Q11: 0
A12: Dator (> 20 tkr) | C12: 10 | I12: 0 | J12: 0 | K12: 0 | L12: 0 | M12: 0 | N12: 0 | O12: 0 | Q12: 0
A13: Dator (> 20 tkr) | C13: 10 | I13: 0 | J13: 0 | K13: 0 | L13: 0 | M13: 0 | N13: 0 | O13: 0 | Q13: 0
A14: Dator (> 20 tkr) | C14: 10 | I14: 0 | J14: 0 | K14: 0 | L14: 0 | M14: 0 | N14: 0 | O14: 0 | Q14: 0
A15: Utrustning (> 20 tkr) | C15: 3 | I15: 0 | J15: 0 | K15: 0 | L15: 0 | M15: 0 | N15: 0 | O15: 0 | Q15: 0
A16: Utrustning (> 20 tkr) | C16: 3 | I16: 0 | J16: 0 | K16: 0 | L16: 0 | M16: 0 | N16: 0 | O16: 0 | Q16: 0
A17: Utrustning (> 20 tkr) | C17: 3 | I17: 0 | J17: 0 | K17: 0 | L17: 0 | M17: 0 | N17: 0 | O17: 0 | Q17: 0
A18: Utrustning (> 20 tkr) | C18: 5 | I18: 0 | J18: =D18*$I18 -> 0 | K18: =E18*$I18 -> 0 | L18: =F18*$I18 -> 0 | M18: =G18*$I18 -> 0 | N18: =H18*$I18 -> 0 | O18: =SUM(J18:N18) -> 0 | Q18: =O18-P18 -> 0
A19: Utrustning (> 20 tkr) | C19: 5 | I19: 0 | J19: 0 | K19: 0 | L19: 0 | M19: 0 | N19: 0 | O19: 0 | Q19: 0
A20: Utrustning (> 20 tkr) | C20: 5 | I20: 0 | J20: 0 | K20: 0 | L20: 0 | M20: 0 | N20: 0 | O20: 0 | Q20: 0
A21: Utrustning (> 20 tkr) | C21: 10 | I21: 0 | J21: 0 | K21: 0 | L21: 0 | M21: 0 | N21: 0 | O21: 0 | Q21: 0
A22: Utrustning (> 20 tkr) | C22: 10 | I22: 0 | J22: 0 | K22: 0 | L22: 0 | M22: 0 | N22: 0 | O22: 0 | Q22: 0
A23: Utrustning (> 20 tkr) | C23: 10 | I23: 0 | J23: 0 | K23: 0 | L23: 0 | M23: 0 | N23: 0 | O23: 0 | Q23: 0
O24: =SUM(J24:N24) -> 0 | Q24: =O24-P24 -> 0
O25: 0 | Q25: 0
J26: =(IF($H26>0,IF($H26<13,12-$H26,0),0))*$I26 -> 0 | O26: 0 | Q26: 0
O27: 0 | Q27: 0
O28: 0 | Q28: 0
O29: 0 | Q29: 0
O30: 0 | Q30: 0
O31: 0 | Q31: 0
O32: 0 | Q32: 0
O33: 0 | Q33: 0
O34: 0 | Q34: 0
O35: 0 | Q35: 0
O36: 0 | Q36: 0
O37: 0 | Q37: 0
O38: 0 | Q38: 0
O39: 0 | Q39: 0
O40: 0 | Q40: 0
O41: 0 | Q41: 0
O42: 0 | Q42: 0
O43: 0 | Q43: 0
O44: 0 | Q44: 0
O45: 0 | Q45: 0
A46: Summa utrustning/avskrivningar HB | J46: =SUM(J5:J45) -> 0 | K46: =SUM(K5:K45) -> 0 | L46: 0 | M46: 0 | N46: 0 | O46: 0 | P46: 0 | Q46: 0

Sheet Påslag
A1: KOSTNADER FÖR PÅSLAG OCH INDIREKTA KOSTNADER
A2: ="Projekt: "&Grunduppgifter!$B$5 -> Projekt:
B4: Enligt Finansiärens villkor | H4: Enligt HBs villkor
A5: Kostnadsslag | B5: År 1 | C5: År 2 | D5: År 3 | E5: År 4 | F5: År 5 | G5: Summa | H5: =B5 -> År 1 | I5: =C5 -> År 2 | J5: =D5 -> År 3 | K5: År 4 | L5: År 5 | M5: Summa | N5: Budget | O5: Diff
A6: Lönekostnader inkl. lkp | B6: =Grunduppgifter!$D$35*(IF(Grunduppgifter!$C$45="Ja",'Lönekostnad FINANSIÄR'!K41,0)) -> 351213.0279 | C6: =Grunduppgifter!$D$35*(IF(Grunduppgifter!$C$45="Ja",'Lönekostnad FINANSIÄR'!N41,0)) -> 359993.3536 | D6: =Grunduppgifter!$D$35*(IF(Grunduppgifter!$C$45="Ja",'Lönekostnad FINANSIÄR'!Q41,0)) -> 368993.1874 | E6: =Grunduppgifter!$D$35*(IF(Grunduppgifter!$C$45="Ja",'Lönekostnad FINANSIÄR'!T41,0)) -> 384661.4104 | F6: =Grunduppgifter!$D$35*(IF(Grunduppgifter!$C$45="Ja",'Lönekostnad FINANSIÄR'!W41,0)) -> 0 | G6: =SUM(B6:F6) -> 1464860.979 | H6: ='Lönekostnad HB'!J41*Påslag -> 351213.0279 | I6: ='Lönekostnad HB'!M41*Påslag -> 359993.3536 | J6: ='Lönekostnad HB'!P41*Påslag -> 368993.1874 | K6: ='Lönekostnad HB'!S41*Påslag -> 384661.4104 | L6: ='Lönekostnad HB'!V41*Påslag -> 0 | M6: =SUM(H6:L6) -> 1464860.979 | O6: =M6-N6 -> 1464860.979
A7: Resekostnader | B7: =Grunduppgifter!$D$35*(IF(Grunduppgifter!$C$47="Ja",Resekostnader!B40,0)) -> 0 | C7: =Grunduppgifter!$D$35*(IF(Grunduppgifter!$C$47="Ja",Resekostnader!C40,0)) -> 0 | D7: =Grunduppgifter!$D$35*(IF(Grunduppgifter!$C$47="Ja",Resekostnader!D40,0)) -> 0 | E7: =Grunduppgifter!$D$35*(IF(Grunduppgifter!$C$47="Ja",Resekostnader!E40,0)) -> 0 | F7: =Grunduppgifter!$D$35*(IF(Grunduppgifter!$C$47="Ja",Resekostnader!F40,0)) -> 0 | G7: 0 | O7: 0
A8: Externa tjänster | B8: =Grunduppgifter!$D$35*(IF(Grunduppgifter!$C$47="Ja",'Externa tjänster'!B40,0)) -> 0 | C8: =Grunduppgifter!$D$35*(IF(Grunduppgifter!$C$47="Ja",'Externa tjänster'!C40,0)) -> 0 | D8: =Grunduppgifter!$D$35*(IF(Grunduppgifter!$C$47="Ja",'Externa tjänster'!D40,0)) -> 0 | E8: =Grunduppgifter!$D$35*(IF(Grunduppgifter!$C$47="Ja",'Externa tjänster'!E40,0)) -> 0 | F8: =Grunduppgifter!$D$35*(IF(Grunduppgifter!$C$47="Ja",'Externa tjänster'!F40,0)) -> 0 | G8: 0 | O8: 0
A9: Övriga kostnader | B9: =Grunduppgifter!$D$35*(IF(Grunduppgifter!$C$47="Ja",'Övriga kostnader'!B40,0)) -> 0 | C9: =Grunduppgifter!$D$35*(IF(Grunduppgifter!$C$47="Ja",'Övriga kostnader'!C40,0)) -> 0 | D9: =Grunduppgifter!$D$35*(IF(Grunduppgifter!$C$47="Ja",'Övriga kostnader'!D40,0)) -> 0 | E9: =Grunduppgifter!$D$35*(IF(Grunduppgifter!$C$47="Ja",'Övriga kostnader'!E40,0)) -> 0 | F9: =Grunduppgifter!$D$35*(IF(Grunduppgifter!$C$47="Ja",'Övriga kostnader'!F40,0)) -> 0 | G9: 0 | O9: 0
A10: Lokaler | B10: =Grunduppgifter!$D$35*(IF(Grunduppgifter!$C$51="Ja",Lokalkostnader!J41,0)) -> 0 | C10: =Grunduppgifter!$D$35*(IF(Grunduppgifter!$C$51="Ja",Lokalkostnader!K41,0)) -> 0 | D10: =Grunduppgifter!$D$35*(IF(Grunduppgifter!$C$51="Ja",Lokalkostnader!L41,0)) -> 0 | E10: =Grunduppgifter!$D$35*(IF(Grunduppgifter!$C$51="Ja",Lokalkostnader!M41,0)) -> 0 | F10: =Grunduppgifter!$D$35*(IF(Grunduppgifter!$C$51="Ja",Lokalkostnader!N41,0)) -> 0 | G10: 0 | O10: 0
A11: Utrustning och avskrivningar | B11: =Grunduppgifter!$D$35*(IF(Grunduppgifter!$C$49="Ja",'Utrustning och avskrivningar'!J46,0)) -> 0 | C11: =Grunduppgifter!$D$35*(IF(Grunduppgifter!$C$49="Ja",'Utrustning och avskrivningar'!K46,0)) -> 0 | D11: =Grunduppgifter!$D$35*(IF(Grunduppgifter!$C$49="Ja",'Utrustning och avskrivningar'!L46,0)) -> 0 | E11: =Grunduppgifter!$D$35*(IF(Grunduppgifter!$C$49="Ja",'Utrustning och avskrivningar'!M46,0)) -> 0 | F11: =Grunduppgifter!$D$35*(IF(Grunduppgifter!$C$49="Ja",'Utrustning och avskrivningar'!N46,0)) -> 0 | G11: 0 | O11: 0
A13: Finansiär medger fast belopp om: | G13: =SUM(B13:F13) -> 0 | O13: 0
A15: Summa påslag | B15: =SUM(B6:B14) -> 351213.0279 | C15: =SUM(C6:C14) -> 359993.3536 | D15: =SUM(D6:D14) -> 368993.1874 | E15: =SUM(E6:E14) -> 384661.4104 | F15: =SUM(F6:F14) -> 0 | G15: =SUM(G6:G14) -> 1464860.979 | H15: 351213.0279 | I15: 359993.3536 | J15: 368993.1874 | K15: 384661.4104 | L15: 0 | M15: 1464860.979 | N15: 0 | O15: 1464860.979

Sheet IN KIND
A1: IN KIND
A2: ="Projekt: "&Grunduppgifter!$B$5 -> Projekt:
B5: Sammanställning
B6: År 1 | C6: År 2 | D6: År 3 | E6: År 4 | F6: År 5 | G6: Summa
A7: Lönekostnader | B7: =J27 -> 0 | C7: =K27 -> 0 | D7: 0 | E7: 0 | F7: 0 | G7: =SUM(B7:F7) -> 0
A8: Resekostnader | B8: =B41 -> 0 | C8: =C41 -> 0 | D8: 0 | E8: 0 | F8: 0 | G8: =SUM(B8:F8) -> 0
A9: Externa tjänster | B9: =B51 -> 0 | C9: =C51 -> 0 | D9: 0 | E9: 0 | F9: 0 | G9: 0
A10: Övriga kostnader | B10: =B61 -> 0 | C10: =C61 -> 0 | D10: 0 | E10: 0 | F10: 0 | G10: 0
A11: Lokalkostnader | B11: =J73+J84+J93 -> 0 | C11: =K73+K84+K93 -> 0 | D11: 0 | E11: 0 | F11: 0 | G11: 0
A12: Utrustning och avskrivningar | B12: =J104 -> 0 | C12: =K104 -> 0 | D12: 0 | E12: 0 | F12: 0 | G12: 0
A13: Påslag | B13: =B120 -> 0 | C13: =C120 -> 0 | D13: 0 | E13: 0 | F13: 0 | G13: 0
B14: =SUM(B7:B13) -> 0 | C14: =SUM(C7:C13) -> 0 | D14: 0 | E14: 0 | F14: 0 | G14: 0
H18: Kostnad
A19: Lönekostnader inkl. LKP | C19: Omfattning % | H19: År 1 | K19: År 2 | N19: År 3 | Q19: År 4 | T19: År 5 | W19: TOTALT
A20: Person / kompetens / roll | B20: Månadslön | C20: År 1 | D20: År 2 | E20: År 3 | F20: År 4 | G20: År 5 | H20: Lön | I20: LKP | J20: TOT | K20: Lön | L20: LKP | M20: TOT | N20: Lön | O20: LKP | P20: TOT | Q20: Lön | R20: LKP | S20: TOT | T20: Lön | U20: LKP | V20: TOT | W20: Lön | X20: LKP | Y20: TOT
H21: =$B21*(1+Löneuppräkning)^a*12*C21 -> 0 | I21: =H21*(LönekostnadspåläggFInansiär) -> 0 | J21: =H21+I21 -> 0 | K21: =$B21*(1+Löneuppräkning)^b*12*D21 -> 0 | L21: =K21*(LönekostnadspåläggFInansiär) -> 0 | M21: =K21+L21 -> 0 | N21: =$B21*(1+Löneuppräkning)^c_*12*E21 -> 0 | O21: =N21*(LönekostnadspåläggFInansiär) -> 0 | P21: =N21+O21 -> 0 | Q21: =$B21*(1+Löneuppräkning)^d*12*F21 -> 0 | R21: =Q21*(LönekostnadspåläggFInansiär) -> 0 | S21: =Q21+R21 -> 0 | T21: =$B21*(1+Löneuppräkning)^e*12*G21 -> 0 | U21: =T21*(LönekostnadspåläggFInansiär) -> 0 | V21: =T21+U21 -> 0 | W21: =H21+K21+N21+Q21+T21 -> 0 | X21: 0 | Y21: =W21+X21 -> 0
H22: 0 | I22: 0 | J22: 0 | K22: 0 | L22: 0 | M22: 0 | N22: 0 | O22: 0 | P22: 0 | Q22: 0 | R22: 0 | S22: 0 | T22: 0 | U22: 0 | V22: 0 | W22: 0 | X22: 0 | Y22: 0
H23: 0 | I23: 0 | J23: 0 | K23: 0 | L23: 0 | M23: 0 | N23: 0 | O23: 0 | P23: 0 | Q23: 0 | R23: 0 | S23: 0 | T23: 0 | U23: 0 | V23: 0 | W23: 0 | X23: 0 | Y23: 0
H24: 0 | I24: 0 | J24: 0 | K24: 0 | L24: 0 | M24: 0 | N24: 0 | O24: 0 | P24: 0 | Q24: 0 | R24: 0 | S24: 0 | T24: 0 | U24: 0 | V24: 0 | W24: 0 | X24: 0 | Y24: 0
H25: 0 | I25: 0 | J25: 0 | K25: 0 | L25: 0 | M25: 0 | N25: 0 | O25: 0 | P25: 0 | Q25: 0 | R25: 0 | S25: 0 | T25: 0 | U25: 0 | V25: 0 | W25: 0 | X25: 0 | Y25: 0
H26: 0 | I26: 0 | J26: 0 | K26: 0 | L26: 0 | M26: 0 | N26: 0 | O26: 0 | P26: 0 | Q26: 0 | R26: 0 | S26: 0 | T26: 0 | U26: 0 | V26: 0 | W26: 0 | X26: 0 | Y26: 0
H27: =SUM(H21:H26) -> 0 | I27: =SUM(I21:I26) -> 0 | J27: 0 | K27: 0 | L27: 0 | M27: 0 | N27: 0 | O27: 0 | P27: 0 | Q27: 0 | R27: 0 | S27: 0 | T27: 0 | U27: 0 | V27: 0 | W27: 0 | X27: 0 | Y27: 0
B34: Kostnad
A35: Resekostnader | B35: År 1 | C35: År 2 | D35: År 3 | E35: År 4 | F35: År 5 | G35: Summa
G36: =SUM(B36:F36) -> 0
G37: =SUM(B37:F37) -> 0
G38: 0
G39: 0
G40: 0
B41: =SUM(B36:B40) -> 0 | C41: =SUM(C36:C40) -> 0 | D41: 0 | E41: 0 | F41: 0 | G41: 0
B44: Kostnad
A45: Externa tjänster | B45: År 1 | C45: År 2 | D45: År 3 | E45: År 4 | F45: År 5 | G45: Summa
G46: =SUM(B46:F46) -> 0
G47: =SUM(B47:F47) -> 0
G48: 0
G49: 0
G50: 0
B51: =SUM(B46:B50) -> 0 | C51: =SUM(C46:C50) -> 0 | D51: 0 | E51: 0 | F51: 0 | G51: 0
B54: Kostnad
A55: Övriga kostnader | B55: År 1 | C55: År 2 | D55: År 3 | E55: År 4 | F55: År 5 | G55: Summa
G56: =SUM(B56:F56) -> 0
G57: =SUM(B57:F57) -> 0
G58: 0
G59: 0
G60: 0
B61: =SUM(B56:B60) -> 0 | C61: =SUM(C56:C60) -> 0 | D61: =SUM(D56:D60) -> 0 | E61: =SUM(E56:E60) -> 0 | F61: =SUM(F56:F60) -> 0 | G61: =SUM(G56:G60) -> 0
J65: Kostnad
A66: Tjänsterum | E66: Omfattning % | J66: År 1 | K66: År 2 | L66: År 3 | M66: År 4 | N66: År 5 | O66: Summa
C67: kvm | D67: Kr/kvm/år | E67: År 1 | F67: År 2 | G67: År 3 | H67: År 4 | I67: År 5
J68: =$C68*$D68*E68 -> 0 | K68: =$C68*$D68*F68 -> 0 | L68: =$C68*$D68*G68 -> 0 | M68: =$C68*$D68*H68 -> 0 | N68: =$C68*$D68*I68 -> 0 | O68: =SUM(J68:N68) -> 0
J69: =$C69*$D69*E69 -> 0 | K69: 0 | L69: 0 | M69: 0 | N69: 0 | O69: 0
J70: 0 | K70: 0 | L70: 0 | M70: 0 | N70: 0 | O70: 0
J71: 0 | K71: 0 | L71: 0 | M71: 0 | N71: 0 | O71: 0
J72: 0 | K72: 0 | L72: 0 | M72: 0 | N72: 0 | O72: 0
J73: =SUM(J68:J72) -> 0 | K73: =SUM(K68:K72) -> 0 | L73: =SUM(L68:L72) -> 0 | M73: =SUM(M68:M72) -> 0 | N73: =SUM(N68:N72) -> 0 | O73: =SUM(O68:O72) -> 0
J76: Kostnad
A77: Interna lokaler | E77: Antal timmar | J77: År 1 | K77: År 2 | L77: År 3 | M77: År 4 | N77: År 5 | O77: Summa
C78: Platser | D78: kr/timme | E78: År 1 | F78: År 2 | G78: År 3 | H78: År 4 | I78: År 5
E79: 25 | F79: 25 | G79: 25 | J79: =$D79*E79 -> 0 | K79: =$D79*F79 -> 0 | L79: =$D79*G79 -> 0 | M79: =$D79*H79 -> 0 | N79: =$D79*I79 -> 0 | O79: =SUM(J79:N79) -> 0
J80: =$D80*E80 -> 0 | K80: 0 | L80: 0 | M80: 0 | N80: 0 | O80: 0
J81: 0 | K81: 0 | L81: 0 | M81: 0 | N81: 0 | O81: 0
J82: 0 | K82: 0 | L82: 0 | M82: 0 | N82: 0 | O82: 0
J83: 0 | K83: 0 | L83: 0 | M83: 0 | N83: 0 | O83: 0
J84: =SUM(J79:J83) -> 0 | K84: =SUM(K79:K83) -> 0 | L84: =SUM(L79:L83) -> 0 | M84: =SUM(M79:M83) -> 0 | N84: =SUM(N79:N83) -> 0 | O84: =SUM(O79:O83) -> 0
J86: Kostnad
A87: Externa lokaler | E87: Antal timmar | J87: År 1 | K87: År 2 | L87: År 3 | M87: År 4 | N87: År 5 | O87: Summa
D88: kr/timme | E88: År 1 | F88: År 2 | G88: År 3 | H88: År 4 | I88: År 5
J89: =$D89*E89 -> 0 | K89: 0 | L89: 0 | M89: 0 | N89: 0 | O89: =SUM(J89:N89) -> 0
J90: 0 | K90: 0 | L90: 0 | M90: 0 | N90: 0 | O90: 0
J91: 0 | K91: 0 | L91: 0 | M91: 0 | N91: 0 | O91: 0
J92: 0 | K92: 0 | L92: 0 | M92: 0 | N92: 0 | O92: 0
J93: =SUM(J88:J92) -> 0 | K93: =SUM(K88:K92) -> 0 | L93: =SUM(L88:L92) -> 0 | M93: =SUM(M88:M92) -> 0 | N93: =SUM(N88:N92) -> 0 | O93: =SUM(O88:O92) -> 0
J97: Kostnad
A98: Utrustning/avskrivningar | J98: År 1 | K98: År 2 | L98: År 3 | M98: År 4 | N98: År 5 | O98: Summa
B99: Ansk.värde | C99: Livslängd (År): | D99: År 1 | E99: År 2 | F99: År 3 | G99: År 4 | H99: År 5
A100: Dator (> 20 tkr) | C100: 3 | I100: =B100/C100/12 -> 0 | J100: =D100*$I100 -> 0 | K100: 0 | L100: 0 | M100: 0 | N100: 0 | O100: =SUM(J100:N100) -> 0
A101: Dator (> 20 tkr) | C101: 10 | I101: =B101/C101/12 -> 0 | J101: 0 | K101: 0 | L101: 0 | M101: 0 | N101: 0 | O101: 0
A102: Utrustning (> 20 tkr) | C102: 5 | I102: =B102/C102/12 -> 0 | J102: 0 | K102: 0 | L102: 0 | M102: 0 | N102: 0 | O102: 0
A103: Utrustning (> 20 tkr) | C103: 10 | I103: =B103/C103/12 -> 0 | J103: 0 | K103: 0 | L103: 0 | M103: 0 | N103: 0 | O103: 0
J104: =SUM(J99:J103) -> 0 | K104: =SUM(K99:K103) -> 0 | L104: =SUM(L99:L103) -> 0 | M104: =SUM(M99:M103) -> 0 | N104: =SUM(N99:N103) -> 0 | O104: =SUM(O99:O103) -> 0
B109: Kostnad
A110: Påslag | B110: År 1 | C110: År 2 | D110: År 3 | E110: År 4 | F110: År 5 | G110: Summa
A111: Lönekostnader inkl. lkp | G111: =SUM(B111:F111) -> 0
A112: Resekostnader | G112: 0
A113: Externa tjänster | G113: 0
A114: Övriga kostnader | G114: 0
A115: Lokaler | G115: 0
A116: Utrustning och avskrivningar | G116: 0
A118: Fast belopp om: | G118: =SUM(B118:F118) -> 0
A120: Summa påslag | B120: =SUM(B111:B119) -> 0 | C120: =SUM(C111:C119) -> 0 | D120: =SUM(D111:D119) -> 0 | E120: =SUM(E111:E119) -> 0 | F120: =SUM(F111:F119) -> 0 | G120: =SUM(G111:G119) -> 0

Sheet PåläggJaNej (hidden)
A1: Ja
A2: Nej

Sheet Löneuppräkning (hidden)
B1: Årsfaktor för löneupräkning
B3: Årsfaktorn tar hänsyn till så att angiven löneuppräkning slår ut även de 3 sista månaderna på året.
B5: Projektår | D5: Årsfaktor
B6: ='Lönekostnad FINANSIÄR'!C5 -> År 1 | C6: a | D6: 1.252325
B7: ='Lönekostnad FINANSIÄR'!$D$5 -> År 2 | C7: b | D7: =a+1 -> 2.252325
B8: ='Lönekostnad FINANSIÄR'!$E$5 -> År 3 | C8: c | D8: =b+1 -> 3.252325
B9: ='Lönekostnad FINANSIÄR'!$F$5 -> År 4 | C9: d | D9: =c_+1 -> 4.252325
B10: ='Lönekostnad FINANSIÄR'!$G$5 -> År 5 | C10: e | D10: =d+1 -> 5.252325
